Cogmind - Beta 9.3 @@@ ROGUE MODE // 2019.12.23 @ 15:31:30 // Winter2019/RPGLIKE Player: Terminus Result: Destroyed 0B10! Performance ------------- Evolutions (9) 4500 Regions Visited (42) 8400 Robots Destroyed (1325) 6625 Value Destroyed (78892) 78892 Prototype IDs (100) 2000 Alien Tech Used (11) 2200 Bonus (104803) 104803 TOTAL SCORE: 207420 Bonus ------- Triggered High Security 1000 High Alert Combat Kills 45795 Follower Combat Kills 843 Network Hubs Disabled 400 Met Data Miner 300 Destroyed Z-Imprinter 1000 Built Enhanced Grunts 300 A7 Reached Mainframe 300 Scanned by Researcher 500 Met Sigix 2000 Recovered Sigix Corpse 1000 Escaped with Sigix 10000 Destroyed MAIN.C Guards 500 Met MAIN.C 5000 Destroyed MAIN.C Shell 5000 Destroyed MAIN.C 10000 Met Architect 300 Started Test 138-B 500 Destroyed A8 300 Destroyed A6 400 Destroyed A5 500 Destroyed A4 700 Destroyed A3 800 Destroyed A2 1000 Destroyed Architect 15000 Win 3000 Friendly Fire -1635 Cogmind --------- Core Integrity 822/900 Matter 385/425 Energy 1376/1380 System Corruption 0% Temperature Cool (4) Movement Flying (10) Location Tau Ceti IV Orbit Parts ------- > --- POWER (2) -------- Zero-point Reactor Zero-point Reactor > --- PROPULSION (4) --- Cooled Q-thruster Cooled Q-thruster Cooled Q-thruster Cooled Q-thruster > --- UTILITY (16) ----- Experimental Power Amplifier Experimental Energy Well Zionite Metafield Generator Experimental Signal Interpreter Experimental Melee Analysis Suite Experimental Melee Analysis Suite Experimental Melee Analysis Suite Experimental Target Analyzer Experimental Core Analyzer Femtoactuators Experimental Actuator Array Advanced Reaction Control System Experimental Phase Shifter AEGIS Remote Shield Architect God Chip A Architect God Chip D > --- WEAPON (4) ------- Plasma Lance Plasma Lance Plasma Lance Plasma Lance > --- INVENTORY (7) ---- Protomatter-100 Protomatter-99 Sigix Containment Pod Sigix Containment Pod Sigix Corpse Peak State ------------ > --- POWER ------------ Zero-point Reactor Zero-point Reactor > --- PROPULSION ------- Cooled Q-thruster Cooled Q-thruster Cooled Q-thruster Cooled Q-thruster > --- UTILITY ---------- Experimental Power Amplifier Experimental Energy Well Dimensional Manipulator Experimental Signal Interpreter Experimental Melee Analysis Suite Experimental Melee Analysis Suite Experimental Melee Analysis Suite Experimental Target Analyzer Experimental Core Analyzer Femtoactuators Experimental Actuator Array Advanced Reaction Control System Experimental Phase Shifter AEGIS Remote Shield Architect God Chip A Architect God Chip D > --- WEAPON ----------- Plasma Lance Plasma Lance Plasma Lance Plasma Lance > --- INVENTORY -------- Protomatter Protomatter High-powered Transdimensional Reconstructor Subatomic Replicator Sigix Containment Pod Sigix Corpse [Rating: 250] Favorites ----------- Power Zero-point Reactor Engine Light Angular Momentum Engine Power Core Light Fission Core Reactor Zero-point Reactor Propulsion Cooled Q-thruster Flight Unit Cooled Q-thruster Utility Experimental Melee Analysis Suite Device Advanced Reaction Control System Storage Experimental Energy Well Processor Experimental Melee Analysis Suite Hackware Advanced Hacking Suite Protection Zionite Weapon Casing Weapon Plasma Lance Energy Gun Small Laser Ballistic Gun Light Assault Rifle Launcher Compact Tesla Bomb Launcher Special Weapon Improved Remote Datajack Impact Weapon Flail Slashing Weapon Katana Piercing Weapon Plasma Lance Build | -11 -10 -10 -9 -9 -9 -8 -8 -7 -7 -7 -7 -7 -7 -7 -6 -6 -6 -6 -6 -6 -6 -5 -5 -5 -5 -5 -5 -5 -5 -4 -4 -4 -4 -4 -3 -3 -2 -2 -2 -1 -1 -1 ------- Run | Scr Mat Min Mat Min Exi Min Mat Fac Was Fac Low Low Zio Dee Pro Fac Was Fac Low Low Dat Pro Fac Was Fac Ext Cet Arc Hub Fac Was Fac Arm Lab Res Qua Res Tes Sec Acc Com Ac0 Slots Evolved 22 | 4 . 1 5 . . 1 . 1 . . . 1 . . 1 1 . . . . . 1 1 . . . . 1 . . . . 1 . . 1 . . 1 . 1 . Power 1 | . . . . . . 1 . . . . . . . . . . . . . . . . . . . . . . . . . . . . . . . . . . . . Propulsion 3 | 1 . . 1 . . . . . . . . . . . 1 . . . . . . . . . . . . . . . . . . . . . . . . . . . Utility 15 | 2 . 1 3 . . . . 1 . . . 1 . . . 1 . . . . . 1 1 . . . . . . . . . 1 . . 1 . . 1 . 1 . Weapon 3 | 1 . . 1 . . . . . . . . . . . . . . . . . . . . . . . . 1 . . . . . . . . . . . . . . Parts Attached 222 | 3 4 2 7 . . 2 7 6 . 7 . 1 2 16 1 15 . 5 . . 3 1 10 1 10 . . . 3 8 . 11 13 . 7 8 5 7 13 4 28 12 Power 17 | 1 . . 1 . . 1 1 . . 2 . . . 1 . 1 . . . . . . . . . . . . . . . 2 2 . 1 . 1 2 . . 1 . Engine 6 | 1 . . 1 . . 1 1 . . 2 . . . . . . . . . . . . . . . . . . . . . . . . . . . . . . . . Core 2 | . . . . . . . . . . . . . . . . 1 . . . . . . . . . . . . . . . . 1 . . . . . . . . . Reactor 9 | . . . . . . . . . . . . . . 1 . . . . . . . . . . . . . . . . . 2 1 . 1 . 1 2 . . 1 . Propulsion 45 | . 2 . 1 . . . 3 . . 2 . . . . 1 6 . 3 . . . . 4 1 4 . . . 2 . . . 4 . . . 4 1 . . 6 1 Treads . | . . . . . . . . . . . . . . . . . . . . . . . . . . . . . . . . . . . . . . . . . . . Leg . | . . . . . . . . . . . . . . . . . . . . . . . . . . . . . . . . . . . . . . . . . . . Wheel . | . . . . . . . . . . . . . . . . . . . . . . . . . . . . . . . . . . . . . . . . . . . Hover . | . . . . . . . . . . . . . . . . . . . . . . . . . . . . . . . . . . . . . . . . . . . Flight 45 | . 2 . 1 . . . 3 . . 2 . . . . 1 6 . 3 . . . . 4 1 4 . . . 2 . . . 4 . . . 4 1 . . 6 1 Utility 125 | . 1 1 3 . . 1 2 4 . 3 . 1 1 11 . 5 . 2 . . 3 1 1 . 2 . . . 1 5 . 7 6 . 6 6 . 4 13 4 20 11 Device 71 | . . 1 . . . 1 . . . 2 . 1 . 8 . . . . . . . 1 . . 1 . . . 1 3 . 2 5 . 3 4 . 2 9 2 16 9 Storage 2 | . . . . . . . . . . . . . . . . . . . . . . . . . . . . . . . . . . . . . . . . 2 . . Processor 22 | . 1 . 2 . . . . 3 . 1 . . . . . 1 . 2 . . . . 1 . . . . . . 2 . 1 . . 2 . . . 2 . 4 . Hackware 29 | . . . 1 . . . 2 1 . . . . 1 2 . 4 . . . . 3 . . . 1 . . . . . . 4 1 . 1 2 . 2 2 . . 2 Protection 1 | . . . . . . . . . . . . . . 1 . . . . . . . . . . . . . . . . . . . . . . . . . . . . Artifact . | . . . . . . . . . . . . . . . . . . . . . . . . . . . . . . . . . . . . . . . . . . . Weapon 35 | 2 1 1 2 . . . 1 2 . . . . 1 4 . 3 . . . . . . 5 . 4 . . . . 3 . 2 1 . . 2 . . . . 1 . Energy Gun 1 | 1 . . . . . . . . . . . . . . . . . . . . . . . . . . . . . . . . . . . . . . . . . . Energy Cannon . | . . . . . . . . . . . . . . . . . . . . . . . . . . . . . . . . . . . . . . . . . . . Ballistic Gun 1 | 1 . . . . . . . . . . . . . . . . . . . . . . . . . . . . . . . . . . . . . . . . . . Ballistic Cannon . | . . . . . . . . . . . . . . . . . . . . . . . . . . . . . . . . . . . . . . . . . . . Launcher 1 | . . . . . . . . . . . . . . . . . . . . . . . . . . . . . . . . 1 . . . . . . . . . . Special Weapon 6 | . . . . . . . . . . . . . . 2 . . . . . . . . 1 . . . . . . 2 . . . . . 1 . . . . . . Impact Weapon 3 | . 1 . 1 . . . 1 . . . . . . . . . . . . . . . . . . . . . . . . . . . . . . . . . . . Slashing Weapon 1 | . . . 1 . . . . . . . . . . . . . . . . . . . . . . . . . . . . . . . . . . . . . . . Piercing Weapon 22 | . . 1 . . . . . 2 . . . . 1 2 . 3 . . . . . . 4 . 4 . . . . 1 . 1 1 . . 1 . . . . 1 . Special Melee Weapon . | . . . . . . . . . . . . . . . . . . . . . . . . . . . . . . . . . . . . . . . . . . . Unidentified Prototypes 34 | . . . 1 . . . 1 . . . . . . 4 . 1 . . . . 3 . . . . . . . 1 . . 1 3 . . 1 1 . 10 . . 7 Parts Lost 10 | . . . 1 . . . . . . . . . . . . . . . . . 1 . . . . . . . 1 . . 2 . . 3 . . 1 1 . . . Power 1 | . . . 1 . . . . . . . . . . . . . . . . . . . . . . . . . . . . . . . . . . . . . . . Propulsion 1 | . . . . . . . . . . . . . . . . . . . . . 1 . . . . . . . . . . . . . . . . . . . . . Utility 8 | . . . . . . . . . . . . . . . . . . . . . . . . . . . . . 1 . . 2 . . 3 . . 1 1 . . . Weapon . | . . . . . . . . . . . . . . . . . . . . . . . . . . . . . . . . . . . . . . . . . . . Highest Loss Streak 2 | . . . 1 . . . . . . . . . . . . . . . . . 1 . . . . . . . 1 . . 2 . . 1 . . 1 1 . . . Average Slot Usage (%) 96 | . 36 80 86 85 85 80 89 100 100 100 100 100 99 100 95 99 100 100 100 100 98 95 96 95 99 100 100 96 94 98 100 97 100 100 97 100 100 99 98 100 99 100 Engine 2 | . 12 11 8 7 7 6 8 12 12 12 12 11 11 6 5 . . . . . . . . . . . . . . . . . . . . . . . . . . . Core 1 | . . . . . . . . . . . . . . . . 4 5 5 5 5 5 5 4 4 4 4 4 4 4 4 4 1 . . . . . . . . . . Reactor 5 | . . . . . . . . . . . . . . 3 5 5 5 5 5 5 5 5 4 4 4 4 4 4 4 4 4 7 8 8 8 8 8 8 8 8 7 7 Flight 17 | . 9 24 23 21 21 20 20 18 18 18 18 17 17 17 17 21 21 21 21 21 19 15 18 19 18 19 19 18 18 18 18 18 17 17 17 16 16 16 16 16 15 15 Device 16 | . . 7 8 7 7 6 6 6 6 6 6 8 11 10 11 10 10 10 10 10 10 15 14 14 14 14 14 13 13 18 18 14 16 17 16 19 16 16 22 30 28 26 Storage 1 | . . . . . . . . . . . . . . . . . . . . . . . . . . . . . . . . . . . . . . . . 7 7 6 Processor 19 | . 1 11 21 21 21 20 20 18 18 18 18 17 17 17 16 21 21 21 21 21 21 20 19 19 19 19 19 18 18 18 18 18 17 17 17 20 20 20 20 20 23 25 Hackware 14 | . . . 4 7 7 6 14 24 25 25 25 23 23 23 22 20 21 21 21 21 20 20 19 19 22 23 23 22 21 18 18 17 21 21 18 16 20 19 14 2 . 1 Impact Weapon 1 | . 11 11 8 7 7 6 6 . . . . . . . . . . . . . . . . . . . . . . . . . . . . . . . . . . . Piercing Weapon 14 | . . 11 8 7 7 6 6 16 18 18 18 17 16 16 16 15 15 15 15 15 15 15 14 14 14 14 14 13 13 15 18 18 17 17 17 15 16 16 16 16 15 15 Naked Turns . | . . . . . . . . . . . . . . . . . . . . . . . . . . . . . . . . . . . . . . . . . . . Heaviest Build 81 | 7 7 10 15 15 15 16 23 23 21 22 22 24 24 27 27 28 28 28 28 28 28 30 45 45 45 29 29 29 31 37 36 36 37 37 38 41 45 53 58 81 81 79 Greatest Support 114 | 13 18 18 22 22 22 22 28 28 28 30 30 30 30 30 35 42 42 42 42 42 42 34 57 61 62 62 62 46 46 46 46 46 58 58 82 58 82 66 66 86 114 86 Greatest Overweight (x) 2 | . . . . . . . . . . . . . . . . . . . . . . . . . . 2 . . . . . . 2 . . . . . . . . . Average Overweight (x) . | . . . . . . . . . . . . . . . . . . . . . . . . . . . . . . . . . . . . . . . . . . . Largest Inventory Capacity 7 | 1 1 1 4 4 4 5 6 6 6 6 6 6 6 6 6 6 6 6 6 6 6 6 6 6 6 6 6 6 6 6 6 6 6 6 6 6 7 7 7 7 7 7 Average Capacity 6 | . 1 1 2 4 4 4 5 6 6 6 6 6 6 6 6 6 6 6 6 6 6 6 6 6 6 6 6 6 6 6 6 6 6 6 6 6 6 7 7 7 7 7 Most Carried 7 | . 1 . 3 3 2 2 6 6 6 6 6 6 6 6 6 6 6 6 6 6 6 6 6 4 6 6 6 6 6 6 6 6 6 5 6 6 7 7 7 7 7 7 Average Carried 5 | . . . 1 2 2 2 3 5 6 5 6 5 6 5 6 5 6 5 5 5 6 5 5 4 4 6 5 5 5 4 5 5 5 5 5 5 6 6 6 6 6 6 Final Capacity 7 | 1 1 1 4 4 4 5 6 6 6 6 6 6 6 6 6 6 6 6 6 6 6 6 6 6 6 6 6 6 6 6 6 6 6 6 6 6 7 7 7 7 7 7 Final Carried 7 | . . . 3 2 2 2 6 6 6 6 6 6 6 6 6 6 6 5 6 6 6 6 4 4 6 6 5 6 6 4 6 6 5 5 5 6 7 7 6 7 6 7 Class Distribution -------------------- 44% | Wizard-Sprinter 29% | Machinist-Sprinter 13% | Hacker-Sprinter 6% | Scavenger-Mutant 3% | Mutant Dominant Class ---------------- Mutant | -10/Materials Mutant | -10/Mines Scavenger-Mutant | -9/Materials Scavenger-Mutant | -9/Mines Scavenger-Mutant | -9/Exiles Scavenger-Mutant | -8/Mines Hacker-Scout | -8/Materials Hacker-Sprinter | -7/Factory Hacker-Sprinter | -7/Waste Hacker-Sprinter | -7/Factory Hacker-Sprinter | -7/Lower Caves Hacker-Sprinter | -7/Lower Caves Hacker-Sprinter | -7/Zion Hacker-Sprinter | -7/Deep Caves Hacker-Sprinter | -6/Proximity Caves Hacker-Sprinter | -6/Factory Wizard-Sprinter | -6/Waste Wizard-Sprinter | -6/Factory Wizard-Sprinter | -6/Lower Caves Wizard-Sprinter | -6/Lower Caves Wizard-Sprinter | -6/Data Miner Wizard-Sprinter | -5/Proximity Caves Wizard-Sprinter | -5/Factory Wizard-Sprinter | -5/Waste Wizard-Sprinter | -5/Factory Wizard-Sprinter | -5/Extension Wizard-Sprinter | -5/Cetus Wizard-Sprinter | -5/Archives Wizard-Sprinter | -5/Hub_04(d) Wizard-Sprinter | -4/Factory Wizard-Sprinter | -4/Waste Wizard-Sprinter | -4/Factory Wizard-Sprinter | -4/Armory Wizard-Sprinter | -4/Lab Machinist-Sprinter | -3/Research Machinist-Sprinter | -3/Quarantine Wizard-Sprinter | -2/Research Wizard-Sprinter | -2/Testing Machinist-Sprinter | -2/Section 7 Machinist-Sprinter | -1/Access Machinist-Sprinter | -1/Command Machinist-Sprinter | -1/Access_0 Resources | -11 -10 -10 -9 -9 -9 -8 -8 -7 -7 -7 -7 -7 -7 -7 -6 -6 -6 -6 -6 -6 -6 -5 -5 -5 -5 -5 -5 -5 -5 -4 -4 -4 -4 -4 -3 -3 -2 -2 -2 -1 -1 -1 ----------- Run | Scr Mat Min Mat Min Exi Min Mat Fac Was Fac Low Low Zio Dee Pro Fac Was Fac Low Low Dat Pro Fac Was Fac Ext Cet Arc Hub Fac Was Fac Arm Lab Res Qua Res Tes Sec Acc Com Ac0 Matter Collected 2901 | 230 43 20 80 . . 20 77 60 . 70 . 10 20 160 10 150 . 50 . . . 35 131 . 168 8 6 . 58 93 . 107 185 . 120 80 50 60 340 60 270 130 Remotely . | . . . . . . . . . . . . . . . . . . . . . . . . . . . . . . . . . . . . . . . . . . . Salvage Created 74186 | . 206 . 2245 103 . 215 841 105 . 503 . 158 . 352 450 901 . 427 580 70 176 75 2174 . 1536 712 177 . 1446 389 . 1100 2971 . 2277 901 1204 1944 2748 9221 33733 4246 Parts 3594 | . 13 . 141 5 . 21 71 8 . 29 . 21 . 36 26 31 . 26 28 4 24 8 126 . 74 63 10 3 59 30 . 63 187 . 106 53 89 93 95 502 1255 294 Haulers Intercepted 43 | . 1 . 6 . . . 4 . . . . . . . . . . 2 . . . . 2 . 2 . . . 5 . . 1 . . 6 1 . 1 3 9 . . Recyclers Shooed 6 | . 2 . 1 . . . . . . . . . . . . . . . . . . . 1 . 2 . . . . . . . . . . . . . . . . . Parts Field Recycled . | . . . . . . . . . . . . . . . . . . . . . . . . . . . . . . . . . . . . . . . . . . . Retrieved Matter . | . . . . . . . . . . . . . . . . . . . . . . . . . . . . . . . . . . . . . . . . . . . Parts Self-Destructed 83 | . . . . . . . . . . . . 21 . . 22 . . . 28 4 . 8 . . . . . . . . . . . . . . . . . . . . Prevented . | . . . . . . . . . . . . . . . . . . . . . . . . . . . . . . . . . . . . . . . . . . . Kills | -11 -10 -10 -9 -9 -9 -8 -8 -7 -7 -7 -7 -7 -7 -7 -6 -6 -6 -6 -6 -6 -6 -5 -5 -5 -5 -5 -5 -5 -5 -4 -4 -4 -4 -4 -3 -3 -2 -2 -2 -1 -1 -1 ------- Run | Scr Mat Min Mat Min Exi Min Mat Fac Was Fac Low Low Zio Dee Pro Fac Was Fac Low Low Dat Pro Fac Was Fac Ext Cet Arc Hub Fac Was Fac Arm Lab Res Qua Res Tes Sec Acc Com Ac0 Combat Hostiles Destroyed 1076 | . 6 . 45 3 . 9 21 2 . 8 . 6 . 5 13 6 . 3 12 1 4 3 33 . 18 17 3 1 9 6 . 13 55 . 15 12 17 25 18 124 513 50 Melee 1067 | . 4 . 45 2 . 9 20 2 . 8 . 6 . 4 13 6 . 3 12 1 4 3 33 . 18 17 3 1 9 6 . 13 55 . 15 12 17 25 18 124 509 50 Cannons 1 | . . . . . . . . . . . . . . 1 . . . . . . . . . . . . . . . . . . . . . . . . . . . . AOE 4 | . . . . . . . . . . . . . . . . . . . . . . . . . . . . . . . . . . . . . . . . . 4 . Classes Destroyed 29 | . 4 . 8 . . . 1 . . 1 . 1 . 2 1 . . . 1 . . . 1 . . . . . . . . . 3 . . 1 . 2 1 . 2 . Worker 52 | . . . 4 . . . 2 . . 3 . . . . . . . 1 . . . . 7 . 2 . . . 5 1 . 4 . . 3 . 2 3 . 7 8 . Builder 18 | . . . . . . . . . . 1 . . . . . 1 . 2 . . . . . . 1 . . . 1 1 . 1 . . 1 3 2 . . 4 . . Tunneler 7 | . . . 2 . . . . . . . . . . . . . . . . . . . 2 . . . . . . 1 . . . . 1 . . . . 1 . . Hauler 43 | . 1 . 6 . . . 4 . . . . . . . . . . 2 . . . . 2 . 2 . . . 5 . . 1 . . 6 1 . 1 3 9 . . Recycler 18 | . 1 . 3 1 . . . . . . . . . . . 3 . . . . . . 1 . . 1 . . . . . 2 . . 3 . . . . . 3 . Carrier 1 | . . . . . . . . . . . . . . . . . . . . . . . . . . . . . . . . . . . . . . 1 . . . . Minesweeper 1 | . . . . . . . . . . . . . . . . . . . 1 . . . . . . . . . . . . . . . . . . . . . . . Mechanic 5 | . . . 1 . . . 1 . . . . . . . . . . . . . . . . . . . . . . . . 1 . . . . . . . . 2 . Operator 17 | . 1 . 5 . . . . . . 1 . . . 1 . 1 . . . . . . . . 1 . . . . . . . . . . . . . 1 3 3 . Watcher 75 | . . . 3 . . . 4 . . . . . . . . . . 3 . . . . 6 . 4 2 . . 5 1 . 4 4 . 5 3 2 3 4 14 8 . Swarmer 171 | . 6 . 8 3 . 3 7 . . 3 . . . . 4 . . . . . . . 5 . . 4 . . . 4 . 5 12 . . 8 5 4 . 32 58 . Saboteur 33 | . . . . . . . . . . . . . . . . . . . . . . . 1 . . . . . . . . . 2 . . . . . . 1 29 . Grunt 311 | . . . 23 . . 6 7 . . 3 . 4 . . 6 4 . 1 8 . . 2 16 . 9 3 . . 4 . . 4 5 . 5 . 3 13 5 42 138 . Brawler 40 | . . . 3 . . . . . . . . . . . 1 . . . . . . . . . . . . . . . . 1 . . . . . . . 1 34 . Duelist 46 | . . . 1 . . . . . . . . . . . 1 . . . . . . . 2 . . . . . . . . . 5 . . . 1 . . 6 30 . Protector 20 | . . . . . . . . . . . . . . . . . . . . . . . . . . . . . . . . . 1 . . . . . . . 19 . Researcher 4 | . . . . . . . . . . . . . . . . . . . . . . . . . . . . . . . . . . . . . . . 4 . . . Sentry 86 | . . . 10 . . . 5 2 . 2 . . . . . 2 . 1 1 . . 1 4 . 1 6 . 1 3 2 . 1 10 . 7 . 2 . 6 13 6 . Demolisher 17 | . . . . . . . . . . . . . . . . . . . . . . . . . . . . . . . . . 5 . . . . . . . 12 . Specialist 23 | . . . . . . . . . . . . . . . . . . . . . . . . . . . . . . . . . 8 . . . . 3 . . 12 . Hunter 96 | . . . . . . . 2 . . . . 1 . . . . . 1 2 . . . 2 . 2 1 . . 2 . . 2 6 . . . . 1 3 15 56 . Programmer 100 | . . . . . . . . . . . . . . . 1 . . . 1 1 . . 3 . 6 2 . . . . . . . . 1 . 5 3 . 8 69 . Behemoth 16 | . . . . . . . . . . . . 1 . . . . . . . . . . . . . 1 . . . . . . 1 . 2 . 1 . 1 6 3 . Cetus Guard 3 | . . . . . . . . . . . . . . . . . . . . . . . . . . . 3 . . . . . . . . . . . . . . . S7 Guard 3 | . . . . . . . . . . . . . . . . . . . . . . . . . . . . . . . . . . . . . . . 3 . . . M Guard 2 | . . . . . . . . . . . . . . . . . . . . . . . . . . . . . . . . . . . . . . . . . 2 . Enhanced Grunt 34 | . . . . . . . . . . . . . . 1 . . . . . . 4 . . . . . . . . . . . . . . . . . . . . 29 Enhanced Sentry 6 | . . . . . . . . . . . . . . . . . . . . . . . . . . . . . . . . . . . . . . . . . . 6 Enhanced Hunter 8 | . . . . . . . . . . . . . . . . . . . . . . . . . . . . . . . . . . . . . . . . . . 8 Lightning 3 | . . . . . . . . . . . . . . . . . . . . . . . . . . . . . . . . . . . . 3 . . . . . . Combat Programmer 2 | . . . . . . . . . . . . . . . . . . . . . . . . . . . . . . . . . . . . . . . . . 2 . Investigator 1 | . . . . . . . . . . . . . . . . . . . . . . . . . . . . . . . . . . . . . . . . . 1 . Striker 18 | . . . . . . . . . . . . . . . . . . . . . . . . . . . . . . . . . . . . . . . . . 18 . Executioner 21 | . . . . . . . . . . . . . . . . . . . . . . . . . . . . . . . . . . . . . . . . . 21 . Alpha 7 3 | . . . . . . . . . . . . . . . . . . . . . . . . . . . . . . . . . . . . 1 . . . . 2 . Fortress 1 | . . . . . . . . . . . . . . . . . . . . . . . . . . . . . . . . . . . . . . 1 . . . . Z-Technician 5 | . . . . . . . . . . . . . . 5 . . . . . . . . . . . . . . . . . . . . . . . . . . . . Z-Light 1 | . . . . . . . . . . . . . . 1 . . . . . . . . . . . . . . . . . . . . . . . . . . . . Assembled 3 | . . . . . . . . . . . . . . 3 . . . . . . . . . . . . . . . . . . . . . . . . . . . . Best Kill Streak 59 | . 4 . 10 4 . 3 6 1 . 5 . 4 . 5 5 4 . 4 5 1 3 3 11 . 7 7 3 1 6 5 . 17 16 . 13 4 5 8 6 51 59 11 Combat Bots Only 59 | . 3 . 6 3 . 3 4 1 . 4 . 4 . 3 5 4 . 1 4 1 3 3 8 . 4 7 3 1 4 4 . 5 15 . 3 4 5 4 5 39 59 11 Max Kills in Single Turn 6 | . 1 . 1 1 . 1 1 1 . 1 . 1 . 3 1 1 . 1 1 1 1 1 2 . 2 2 1 1 2 1 . 2 2 . 2 1 2 2 1 3 6 2 Gunslinging . | . . . . . . . . . . . . . . . . . . . . . . . . . . . . . . . . . . . . . . . . . . . Exploded 4 | . . . . . . . . . . . . . . . . . . . . . . . . . . . . . . . . . . . . . . . . . 4 . Melee 3 | . 1 . 1 1 . 1 1 1 . 1 . 1 . 1 1 1 . 1 1 1 1 1 2 . 2 2 1 1 2 1 . 1 2 . 2 1 2 2 1 3 3 2 Uniques/NPCs Destroyed 10 | . . . . . . . . . . . . . . 1 . . . . . . 1 . . . . . . . . . . . . . . . . . . . 1 7 Z-Imprinter (-7/Deep Caves) Data Miner (-6/Data Miner) MAIN.C Shell (-1/Command) MAIN.C (-1/Command) A8 (-1/Access_0) A6 (-1/Access_0) A5 (-1/Access_0) A4 (-1/Access_0) A2 (-1/Access_0) A3 (-1/Access_0) Architect (-1/Access_0) Combat | -11 -10 -10 -9 -9 -9 -8 -8 -7 -7 -7 -7 -7 -7 -7 -6 -6 -6 -6 -6 -6 -6 -5 -5 -5 -5 -5 -5 -5 -5 -4 -4 -4 -4 -4 -3 -3 -2 -2 -2 -1 -1 -1 -------- Run | Scr Mat Min Mat Min Exi Min Mat Fac Was Fac Low Low Zio Dee Pro Fac Was Fac Low Low Dat Pro Fac Was Fac Ext Cet Arc Hub Fac Was Fac Arm Lab Res Qua Res Tes Sec Acc Com Ac0 Damage Taken 30161 | . 299 . 1202 153 . 267 716 12 25 462 . 531 . 645 1054 169 . 137 673 15 471 171 1289 . 643 388 229 198 326 189 . 739 1897 . 796 378 751 891 873 2026 9805 1741 Core 24760 | . 254 . 1004 125 . 229 608 12 20 367 . 447 . 522 901 147 . 104 567 15 401 143 1065 . 513 331 191 174 266 158 . 603 1535 . 608 317 626 750 731 1629 7957 1440 Absorbed by Shields 12524 | . . . . . . . . . . . . . . . . . . . . . . . . . . 67 97 . . . . . . . . . . . . 1423 9360 1577 Redirected to Core 18587 | . 132 . 649 78 . 130 347 . 20 313 . 316 . 475 539 81 . 104 379 . 263 100 799 . 475 195 136 95 225 108 . 500 1282 . 551 226 452 525 522 1314 6210 1046 Core Remaining (%) 88 | 100 . 92 . . . 100 100 . . . . . . . 53 . . . . . . 100 . . . . . . 78 . . . . 82 . 100 . . 77 . . 91 Volleys Fired 24 | . 3 . . . . . . . . . . . . 16 . . . . . . . . 1 . . . . . . 1 . . . . . 3 . . . . . . Largest 2 | . 2 . . . . . . . . . . . . 1 . . . . . . . . 1 . . . . . . 1 . . . . . 1 . . . . . . Hottest 60 | . 60 . . . . . . . . . . . . 20 . . . . . . . . 30 . . . . . . 40 . . . . . 20 . . . . . . Shots Fired 27 | . 6 . . . . . . . . . . . . 16 . . . . . . . . 1 . . . . . . 1 . . . . . 3 . . . . . . Gun 6 | . 6 . . . . . . . . . . . . . . . . . . . . . . . . . . . . . . . . . . . . . . . . . Cannon . | . . . . . . . . . . . . . . . . . . . . . . . . . . . . . . . . . . . . . . . . . . . Launcher . | . . . . . . . . . . . . . . . . . . . . . . . . . . . . . . . . . . . . . . . . . . . Special 21 | . . . . . . . . . . . . . . 16 . . . . . . . . 1 . . . . . . 1 . . . . . 3 . . . . . . Kinetic 3 | . 3 . . . . . . . . . . . . . . . . . . . . . . . . . . . . . . . . . . . . . . . . . Thermal 22 | . 3 . . . . . . . . . . . . 16 . . . . . . . . . . . . . . . . . . . . . 3 . . . . . . Explosive . | . . . . . . . . . . . . . . . . . . . . . . . . . . . . . . . . . . . . . . . . . . . Electromagnetic . | . . . . . . . . . . . . . . . . . . . . . . . . . . . . . . . . . . . . . . . . . . . Robot Hit Streak 3 | . 1 . . . . . . . . . . . . 2 . . . . . . . . 1 . . . . . . 2 . . . . . 3 . . . . . . Robot Miss Streak 3 | . 2 . . . . . . . . . . . . 3 . . . . . . . . . . . . . . . . . . . . . 1 . . . . . . Penetration Max . | . . . . . . . . . . . . . . . . . . . . . . . . . . . . . . . . . . . . . . . . . . . Secondary Targets . | . . . . . . . . . . . . . . . . . . . . . . . . . . . . . . . . . . . . . . . . . . . Shots Hit Robots 3012 | . 29 . 124 5 . 22 71 4 . 28 . 14 . 20 33 22 . 22 43 1 21 6 100 . 65 37 6 9 45 16 . 42 124 . 83 53 60 94 84 324 1131 274 Core Hits 1760 | . 6 . 68 3 . 11 35 2 . 15 . 9 . 14 21 13 . 12 17 1 12 4 58 . 30 22 5 3 25 11 . 28 81 . 45 25 30 52 45 184 701 172 Critical Hits 242 | . . . 5 . . . 3 . . 2 . . . 3 2 . . 1 6 . 1 . 7 . 4 4 . . 2 . . 3 4 . 9 . 5 7 6 21 103 44 Critical Kills 110 | . . . 3 . . . 1 . . 1 . . . 1 2 . . . 2 . 1 . 5 . 2 2 . . 1 . . 1 2 . 7 . 3 4 1 7 52 12 Critical Parts Destroyed 104 | . . . 2 . . . 2 . . 1 . . . 2 . . . 1 4 . . . 2 . 2 2 . . 1 . . 2 2 . 1 . 1 2 5 12 43 17 Melee Attacks 4285 | . 44 1 229 27 . 29 132 14 1 61 3 22 . 36 71 49 . 38 52 2 27 11 155 . 86 48 11 10 83 37 . 75 188 . 139 116 90 119 132 466 1354 327 Impact 89 | . 44 . 26 5 . 2 12 . . . . . . . . . . . . . . . . . . . . . . . . . . . . . . . . . . . Slashing 19 | . . . 1 4 . 2 12 . . . . . . . . . . . . . . . . . . . . . . . . . . . . . . . . . . . Piercing 4177 | . . 1 202 18 . 25 108 14 1 61 3 22 . 36 71 49 . 38 52 2 27 11 155 . 86 48 11 10 83 37 . 75 188 . 139 116 90 119 132 466 1354 327 Sneak Attacks 284 | . 3 . 25 1 . 3 16 3 . 8 . 1 . 4 . 7 . 8 1 . 1 . 15 . 11 4 . 2 12 4 . 10 2 . 16 5 8 17 15 46 28 8 Combat Hostiles 66 | . . . 3 . . 2 6 2 . 1 . 1 . . . . . 1 . . . . 1 . . 3 . . 1 1 . . . . . . 3 11 3 9 10 8 Follow-up Attacks 1129 | . . . 18 4 . 2 15 1 . 4 . 6 . 2 12 7 . 2 14 . 8 1 19 . 12 4 . 1 10 1 . 10 42 . 29 20 25 40 40 130 509 141 Damage Inflicted 237719 | . 677 . 5323 214 . 803 3162 345 . 1485 . 563 . 2536 1027 1525 . 1703 1852 63 939 300 6847 . 5376 2739 386 674 4327 1382 . 3874 7906 . 6519 3624 4258 6985 7219 31900 99602 21584 Guns 26 | . 26 . . . . . . . . . . . . . . . . . . . . . . . . . . . . . . . . . . . . . . . . . Cannons . | . . . . . . . . . . . . . . . . . . . . . . . . . . . . . . . . . . . . . . . . . . . Explosions 2258 | . . . . . . . . . . . . . . 1370 . . . . . . . . . . . . . . 109 . . . . . . . . . . . 779 . Melee 235308 | . 651 . 5323 214 . 803 3162 345 . 1485 . 563 . 1071 1027 1525 . 1703 1852 63 939 300 6847 . 5376 2739 386 674 4218 1382 . 3874 7906 . 6519 3592 4258 6985 7219 31900 98823 21584 Ramming . | . . . . . . . . . . . . . . . . . . . . . . . . . . . . . . . . . . . . . . . . . . . Kinetic 6 | . 6 . . . . . . . . . . . . . . . . . . . . . . . . . . . . . . . . . . . . . . . . . Thermal 1517 | . 20 . . . . . . . . . . . . 1465 . . . . . . . . . . . . . . . . . . . . . 32 . . . . . . Explosive 779 | . . . . . . . . . . . . . . . . . . . . . . . . . . . . . . . . . . . . . . . . . 779 . Electromagnetic 109 | . . . . . . . . . . . . . . . . . . . . . . . . . . . . . 109 . . . . . . . . . . . . . Impact 1405 | . 651 . 405 49 . 36 264 . . . . . . . . . . . . . . . . . . . . . . . . . . . . . . . . . . . Slashing 234 | . . . . . . 28 206 . . . . . . . . . . . . . . . . . . . . . . . . . . . . . . . . . . . Piercing 233669 | . . . 4918 165 . 739 2692 345 . 1485 . 563 . 1071 1027 1525 . 1703 1852 63 939 300 6847 . 5376 2739 386 674 4218 1382 . 3874 7906 . 6519 3592 4258 6985 7219 31900 98823 21584 Highest Corruption 7 | . . . . . . . 4 . . . . . . . . . . . . . . . 4 4 6 6 6 6 7 . . 6 6 6 1 3 2 2 2 . . . Average Corruption 3 | . . . . . . . 4 . . . . . . . . . . . . . . . 3 4 5 6 6 6 6 . . 6 6 6 1 1 1 2 2 . . . Corruption Purged . | . . . . . . . . . . . . . . . . . . . . . . . . . . . . . . . . . . . . . . . . . . . Effects 168 | . . . . . . . 7 . . . . . . . . . . . . . . . 13 1 38 9 6 2 13 . . 14 34 2 2 4 2 13 8 . . . Message Errors 38 | . . . . . . . 2 . . . . . . . . . . . . . . . 4 . 6 2 3 . 2 . . 4 6 . 1 1 2 2 3 . . . Matter Fused 34 | . . . . . . . 1 . . . . . . . . . . . . . . . 3 . 8 1 2 . 4 . . 5 8 2 . . . . . . . . Heat Flow Errors 15 | . . . . . . . . . . . . . . . . . . . . . . . 1 . 8 1 . 1 1 . . . 1 . . . . 1 1 . . . Energy Discharges 19 | . . . . . . . . . . . . . . . . . . . . . . . 2 . 6 3 . . . . . 2 2 . . 3 . 1 . . . . Parts Rejected 1 | . . . . . . . . . . . . . . . . . . . . . . . . 1 . . . . . . . . . . . . . . . . . . Data Loss (minor) 24 | . . . . . . . 1 . . . . . . . . . . . . . . . 1 . 4 . 1 1 2 . . 2 2 . 1 . . 7 2 . . . Data Loss (major) 7 | . . . . . . . . . . . . . . . . . . . . . . . . . 2 . . . . . . 1 4 . . . . . . . . . Targeting Errors 30 | . . . . . . . 3 . . . . . . . . . . . . . . . 2 . 4 2 . . 4 . . . 11 . . . . 2 2 . . . Overload Shots . | . . . . . . . . . . . . . . . . . . . . . . . . . . . . . . . . . . . . . . . . . . . Overflow Damage 17986 | . 59 . 626 8 . 51 156 74 . 258 . . . 633 11 340 . 368 187 . 3 10 472 . 994 108 . . 604 . . 504 302 . 524 394 309 686 818 2430 6751 306 Projectiles . | . . . . . . . . . . . . . . . . . . . . . . . . . . . . . . . . . . . . . . . . . . . Explosions 473 | . . . . . . . . . . . . . . 390 . . . . . . . . . . . . . . 1 . . . . . . . . . . . 82 . Melee 17513 | . 59 . 626 8 . 51 156 74 . 258 . . . 243 11 340 . 368 187 . 3 10 472 . 994 108 . . 603 . . 504 302 . 524 394 309 686 818 2430 6669 306 Knockbacks 2 | . 1 . . . . . 1 . . . . . . . . . . . . . . . . . . . . . . . . . . . . . . . . . . . Impact 2 | . 1 . . . . . 1 . . . . . . . . . . . . . . . . . . . . . . . . . . . . . . . . . . . Kinetic . | . . . . . . . . . . . . . . . . . . . . . . . . . . . . . . . . . . . . . . . . . . . Secondary . | . . . . . . . . . . . . . . . . . . . . . . . . . . . . . . . . . . . . . . . . . . . Self-Inflicted Damage 780 | . . . . . . . . . . . . . . 470 . . . . . . . . . . . . . . 155 . . . . . . . . . . . 155 . Shots 4 | . . . . . . . . . . . . . . 1 . . . . . . . . . . . . . . 2 . . . . . . . . . . . 1 . Rammed . | . . . . . . . . . . . . . . . . . . . . . . . . . . . . . . . . . . . . . . . . . . . Targets Rammed . | . . . . . . . . . . . . . . . . . . . . . . . . . . . . . . . . . . . . . . . . . . . Kicked . | . . . . . . . . . . . . . . . . . . . . . . . . . . . . . . . . . . . . . . . . . . . Crushed . | . . . . . . . . . . . . . . . . . . . . . . . . . . . . . . . . . . . . . . . . . . . Highest Temperature 236 | . . . . . . . . . . . . . . . . 3 . . 1 . . . 162 159 231 151 34 205 185 . . . 236 . 23 . 3 155 197 . 33 . Average Temperature 93 | . . . . . . . . . . . . . . . . 3 . . 1 . . . 81 81 100 68 27 116 111 . . . 142 . 23 . 3 112 158 . 33 . Received Heat Transfer 3329 | . . . 438 . . 117 225 . . 108 . 198 . 33 135 63 . 12 183 . 60 27 174 . 111 60 25 27 54 18 . 75 120 . 105 9 63 99 108 110 476 96 Siege Activations . | . . . . . . . . . . . . . . . . . . . . . . . . . . . . . . . . . . . . . . . . . . . Robots Corrupted . | . . . . . . . . . . . . . . . . . . . . . . . . . . . . . . . . . . . . . . . . . . . Combat Hostiles . | . . . . . . . . . . . . . . . . . . . . . . . . . . . . . . . . . . . . . . . . . . . Parts Fried 9 | . 3 . 1 2 . . 2 . . . . . . . . . . . . . . . . . . 1 . . . . . . . . . . . . . . . . Impact Corruptions 14 | . 6 . 6 1 . . 1 . . . . . . . . . . . . . . . . . . . . . . . . . . . . . . . . . . . Robots Melted . | . . . . . . . . . . . . . . . . . . . . . . . . . . . . . . . . . . . . . . . . . . . Combat Hostiles . | . . . . . . . . . . . . . . . . . . . . . . . . . . . . . . . . . . . . . . . . . . . Parts Melted 4 | . . . 1 . . . . . . . . . . 2 . . . . . . . . . . . . . 1 . . . . . . . . . . . . . . Heat Transferred 309 | . 50 . . . . . . . . . . . . 221 . . . . . . . . . . . . . . . . . . . . . 38 . . . . . . Parts Sabotaged 22 | . . . . . . . . . . . . . . . . . . . . . . . . . . . . . . . . . . . . . . . . . 22 . Parts Stolen . | . . . . . . . . . . . . . . . . . . . . . . . . . . . . . . . . . . . . . . . . . . . Parts Stripped . | . . . . . . . . . . . . . . . . . . . . . . . . . . . . . . . . . . . . . . . . . . . Power Chain Reactions . | . . . . . . . . . . . . . . . . . . . . . . . . . . . . . . . . . . . . . . . . . . . Missiles Intercepted . | . . . . . . . . . . . . . . . . . . . . . . . . . . . . . . . . . . . . . . . . . . . Alert | -11 -10 -10 -9 -9 -9 -8 -8 -7 -7 -7 -7 -7 -7 -7 -6 -6 -6 -6 -6 -6 -6 -5 -5 -5 -5 -5 -5 -5 -5 -4 -4 -4 -4 -4 -3 -3 -2 -2 -2 -1 -1 -1 ------- Run | Scr Mat Min Mat Min Exi Min Mat Fac Was Fac Low Low Zio Dee Pro Fac Was Fac Low Low Dat Pro Fac Was Fac Ext Cet Arc Hub Fac Was Fac Arm Lab Res Qua Res Tes Sec Acc Com Ac0 Peak Influence 13772 | . 232 179 1272 585 . 263 528 457 251 558 . . . . . 399 93 479 . . . . 1070 380 520 460 243 277 1130 737 339 336 1137 . 817 259 480 664 446 3961 13772 . Average Influence 1485 | . 98 114 615 546 . 148 306 127 215 305 . . . . . 213 74 141 . . . . 489 364 85 231 226 213 605 466 284 230 424 . 266 121 130 98 196 2763 8436 . Maximum Alert Level 5 | . 1 . 4 2 . 1 2 2 1 2 . . . . . 1 . 2 . . . . 3 1 2 2 1 1 4 3 1 1 4 . 3 1 2 2 2 5 5 . Low Security (%) 38 | 100 83 100 10 . . 77 22 97 37 21 . . . . . 43 100 81 . . . . 12 . 82 37 9 33 6 . . 29 7 . 31 89 73 81 52 10 . . Level 1 24 | . 16 . 32 . . 22 47 . 62 46 . . . . . 56 . 5 . . . . 21 100 14 54 90 66 22 36 100 70 60 . 58 10 22 13 42 2 . . Level 2 11 | . . . 11 100 . . 29 2 . 32 . . . . . . . 13 . . . . 49 . 3 8 . . 28 50 . . 14 . 6 . 3 4 5 6 . . Level 3 4 | . . . 31 . . . . . . . . . . . . . . . . . . . 16 . . . . . 37 12 . . 11 . 4 . . . . 3 . . Level 4 1 | . . . 13 . . . . . . . . . . . . . . . . . . . . . . . . . 5 . . . 5 . . . . . . 2 . . Level 5 1 | . . . . . . . . . . . . . . . . . . . . . . . . . . . . . . . . . . . . . . . . 6 7 . High Security 18 | . . . . . . . . . . . . . . . . . . . . . . . . . . . . . . . . . . . . . . . . 66 92 . Max Security . | . . . . . . . . . . . . . . . . . . . . . . . . . . . . . . . . . . . . . . . . . . . Squads Dispatched 113 | . 2 . 10 . . . 3 4 . 3 . . . . . 2 . . . . . . 10 . 7 2 2 . 6 2 . 1 4 . 3 . 2 5 . 8 37 . Investigation 31 | . 1 . 5 . . . 2 3 . 2 . . . . . 1 . . . . . . 3 . 2 1 2 . 1 2 . 1 3 . 1 . . . . . 1 . Extermination 10 | . . . . . . . . . . . . . . . . . . . . . . . 1 . 1 . . . . . . . 1 . 1 . 2 3 . 1 . . Reinforcement 26 | . 1 . 3 . . . 1 1 . 1 . . . . . 1 . . . . . . 2 . 4 1 . . 5 . . . . . 1 . . 2 . 3 . . Assault 45 | . . . 2 . . . . . . . . . . . . . . . . . . . 4 . . . . . . . . . . . . . . . . 3 36 . Garrison 1 | . . . . . . . . . . . . . . . . . . . . . . . . . . . . . . . . . . . . . . . . 1 . . Intercept . | . . . . . . . . . . . . . . . . . . . . . . . . . . . . . . . . . . . . . . . . . . . Construction Impeded 1 | . . . . . . . . 1 . . . . . . . . . . . . . . . . . . . . . . . . . . . . . . . . . . Haulers Reinforced 8 | . . . . . . . . . . . . . . . . . . . . . . . 2 . 1 . . . 1 . . . . . 1 . . 1 . 2 . . Stealth | -11 -10 -10 -9 -9 -9 -8 -8 -7 -7 -7 -7 -7 -7 -7 -6 -6 -6 -6 -6 -6 -6 -5 -5 -5 -5 -5 -5 -5 -5 -4 -4 -4 -4 -4 -3 -3 -2 -2 -2 -1 -1 -1 --------- Run | Scr Mat Min Mat Min Exi Min Mat Fac Was Fac Low Low Zio Dee Pro Fac Was Fac Low Low Dat Pro Fac Was Fac Ext Cet Arc Hub Fac Was Fac Arm Lab Res Qua Res Tes Sec Acc Com Ac0 Distress Signals 32 | . . . 2 . . . 2 . . 1 . . . . . . . . . . . . 3 . 1 1 1 . 1 2 . 2 4 . 3 . . . 2 3 4 . Communications Jammed . | . . . . . . . . . . . . . . . . . . . . . . . . . . . . . . . . . . . . . . . . . . . Distress Signals . | . . . . . . . . . . . . . . . . . . . . . . . . . . . . . . . . . . . . . . . . . . . Times Spotted 1612 | . 10 3 77 3 . 15 26 4 6 14 3 5 . 6 13 12 4 8 15 1 4 8 60 3 25 20 5 4 22 13 6 29 68 . 23 18 26 35 28 140 785 65 Peak Tracking Total 63 | . 4 2 8 3 . 4 5 2 3 4 3 4 . 3 4 4 4 1 4 1 3 5 10 3 4 7 5 2 4 6 6 6 10 . 4 5 6 4 7 12 63 5 Tactical Retreats 67 | . . . 6 . . 5 . . . . . . . . . . . . 1 . . 1 10 . 1 . . . . 1 . 1 2 . . 1 . . . 3 35 . Traps | -11 -10 -10 -9 -9 -9 -8 -8 -7 -7 -7 -7 -7 -7 -7 -6 -6 -6 -6 -6 -6 -6 -5 -5 -5 -5 -5 -5 -5 -5 -4 -4 -4 -4 -4 -3 -3 -2 -2 -2 -1 -1 -1 ------- Run | Scr Mat Min Mat Min Exi Min Mat Fac Was Fac Low Low Zio Dee Pro Fac Was Fac Low Low Dat Pro Fac Was Fac Ext Cet Arc Hub Fac Was Fac Arm Lab Res Qua Res Tes Sec Acc Com Ac0 Traps Triggered 35 | . 1 . 2 . . . 3 1 . 2 . . . . . 1 . . . . . . 3 . 3 . . . . 1 . 1 1 . 2 . . . . 3 11 . Indirectly . | . . . . . . . . . . . . . . . . . . . . . . . . . . . . . . . . . . . . . . . . . . . Trap Hack Attempts . | . . . . . . . . . . . . . . . . . . . . . . . . . . . . . . . . . . . . . . . . . . . Triggered . | . . . . . . . . . . . . . . . . . . . . . . . . . . . . . . . . . . . . . . . . . . . Disarmed . | . . . . . . . . . . . . . . . . . . . . . . . . . . . . . . . . . . . . . . . . . . . Reprogrammed . | . . . . . . . . . . . . . . . . . . . . . . . . . . . . . . . . . . . . . . . . . . . Reused . | . . . . . . . . . . . . . . . . . . . . . . . . . . . . . . . . . . . . . . . . . . . Traps Extracted . | . . . . . . . . . . . . . . . . . . . . . . . . . . . . . . . . . . . . . . . . . . . Installed . | . . . . . . . . . . . . . . . . . . . . . . . . . . . . . . . . . . . . . . . . . . . Triggered 4 | . . . . . . . . . . . . . . . . . . . 2 . . 2 . . . . . . . . . . . . . . . . . . . . Machines | -11 -10 -10 -9 -9 -9 -8 -8 -7 -7 -7 -7 -7 -7 -7 -6 -6 -6 -6 -6 -6 -6 -5 -5 -5 -5 -5 -5 -5 -5 -4 -4 -4 -4 -4 -3 -3 -2 -2 -2 -1 -1 -1 ---------- Run | Scr Mat Min Mat Min Exi Min Mat Fac Was Fac Low Low Zio Dee Pro Fac Was Fac Low Low Dat Pro Fac Was Fac Ext Cet Arc Hub Fac Was Fac Arm Lab Res Qua Res Tes Sec Acc Com Ac0 Machines Disabled 73 | . . 1 12 . . 1 . . . 2 . . . 2 . . . . . . 1 . . . . 2 1 1 7 . . . 4 . . 6 . 6 7 7 3 10 Max in Single Turn 5 | . . 1 1 . . 1 . . . 1 . . . 2 . . . . . . 1 . . . . 1 1 . 5 . . . 1 . . 1 . 1 1 1 2 1 Garrison Access 23 | . . . . . . . 1 1 . . . . . . . 3 . 2 . . . . 2 . 1 . . . 2 1 . 2 . . 1 1 . 1 1 4 . . Phase Generator 1 | . . . . . . . . . . . . . . . . . . . . . . . . . . . . . . . . . . . . . . . . . 1 . Network Hub 2 | . . . . . . . . . . . . . . . . . . . . . . . . . . . . . 2 . . . . . . . . . . . . . Energy Cycler 1 | . . . . . . . . . . . . . . . . . . . . . . . . . . . . . . . . . 1 . . . . . . . . . Machines Sabotaged . | . . . . . . . . . . . . . . . . . . . . . . . . . . . . . . . . . . . . . . . . . . . Garrisons Compromised . | . . . . . . . . . . . . . . . . . . . . . . . . . . . . . . . . . . . . . . . . . . . Overloaded Fab Kills . | . . . . . . . . . . . . . . . . . . . . . . . . . . . . . . . . . . . . . . . . . . . Fab Network Shutdowns 8 | . . . . . . . . 1 . . . . . . . . . 1 . . . . 1 . . . . . . 1 . . . . 1 . 1 1 . 1 . . Hacking | -11 -10 -10 -9 -9 -9 -8 -8 -7 -7 -7 -7 -7 -7 -7 -6 -6 -6 -6 -6 -6 -6 -5 -5 -5 -5 -5 -5 -5 -5 -4 -4 -4 -4 -4 -3 -3 -2 -2 -2 -1 -1 -1 --------- Run | Scr Mat Min Mat Min Exi Min Mat Fac Was Fac Low Low Zio Dee Pro Fac Was Fac Low Low Dat Pro Fac Was Fac Ext Cet Arc Hub Fac Was Fac Arm Lab Res Qua Res Tes Sec Acc Com Ac0 Machines Accessed 211 | . 7 . 10 . . 1 11 8 . 7 . . . . . 12 . 11 . . 4 . 14 . 9 7 4 . 11 6 . 9 10 . 8 11 9 12 14 11 3 2 Terminals 148 | . 6 . 9 . . 1 9 4 . 5 . . . . . 7 . 5 . . . . 10 . 6 7 4 . 9 3 . 2 8 . 6 7 7 9 13 8 3 . Fabricators 24 | . . . . . . . . 3 . 1 . . . . . 2 . 2 . . . . 2 . 2 . . . . 1 . 2 2 . 1 . 2 2 . 2 . . Repair Stations 1 | . . . . . . . . . . . . . . . . . . 1 . . . . . . . . . . . . . . . . . . . . . . . . Recycling Units 6 | . 1 . 1 . . . . . . 1 . . . . . . . . . . . . 1 . . . . . . . . 2 . . . . . . . . . . Scanalyzers 7 | . . . . . . . 1 . . . . . . . . . . 1 . . . . . . . . . . . 1 . 1 . . . 3 . . . . . . Garrison Access 19 | . . . . . . . 1 1 . . . . . . . 3 . 2 . . . . 1 . 1 . . . 2 1 . 2 . . 1 1 . 1 1 1 . . Total Hacks 950 | . 20 . 39 . . 4 40 46 . 31 . . . . . 53 . 46 . . 30 . 46 . 49 35 31 . 41 30 . 38 50 . 50 46 40 66 46 52 13 8 Successful 786 | . 15 . 28 . . 4 35 34 . 21 . . . . . 34 . 35 . . 30 . 39 . 43 34 30 . 40 26 . 34 42 . 42 36 35 60 42 36 3 8 Failed 156 | . 5 . 11 . . . 5 11 . 9 . . . . . 19 . 11 . . . . 7 . 6 . . . . 3 . 3 7 . 8 10 5 6 4 16 10 . Catastrophic 17 | . 1 . 2 . . . . . . 1 . . . . . 1 . . . . . . . . . . . . . . . . . . 1 6 2 . . 1 2 . Database Lockouts 9 | . . . . . . . . 2 . 1 . . . . . . . . . . . . . . . 1 1 . 1 1 . 1 1 . . . . . . . . . Manual 673 | . 18 . 35 . . 4 34 27 . 23 . . 5 . . 38 . 26 . . . . 36 . 33 28 26 . 37 17 . 17 41 . 40 33 29 45 40 31 10 . Terminals 676 | . 17 . 37 . . 4 34 19 . 25 . . . . . 35 . 26 . . . . 33 . 29 35 31 . 39 19 . 12 39 . 39 36 26 45 45 38 13 . Fabricators 180 | . . . . . . . . 24 . 5 . . . . . 14 . 13 . . . . 11 . 19 . . . . 8 . 18 11 . 10 . 14 20 . 13 . . Repair Stations 3 | . . . . . . . . . . . . . . . . . . 3 . . . . . . . . . . . . . . . . . . . . . . . . Recycling Units 9 | . 3 . 2 . . . . . . 1 . . . . . . . . . . . . 1 . . . . . . . . 2 . . . . . . . . . . Scanalyzers 21 | . . . . . . . 4 . . . . . . . . . . 2 . . . . . . . . . . . 2 . 4 . . . 9 . . . . . . Garrison Access 23 | . . . . . . . 2 3 . . . . . . . 4 . 2 . . . . 1 . 1 . . . 2 1 . 2 . . 1 1 . 1 1 1 . . Terminal Hacks 415 | . 6 . 16 . . 2 20 10 . 11 . . . . . 11 . 12 . . 30 . 15 . 17 26 29 . 25 13 . 8 24 . 24 21 13 29 27 17 1 8 Record 23 | . . . . . . . . . . . . . . . . . . . . . 11 . . . . . 5 . . . . . . . . . . . . 1 . 6 Part Schematic 45 | . . . . . . . 3 4 . 1 . . . . . 5 . 1 . . 9 . 5 . 1 . . . 1 1 . 1 2 . 7 1 . . 1 2 . . Robot Schematic 8 | . . . . . . . . . . . . . . . . . . . . . 7 . . . . . . . . . . . . . . . . 1 . . . . Robot Analysis 2 | . . . . . . . . . . . . . . . . . . . . . . . . . . . . . . . . . . . . . . 2 . . . . Prototype ID Bank 34 | . . . . . . . . . . 1 . . . . . . . 2 . . 3 . . . . 1 19 . 6 . . . . . 1 . . 1 . . . . Open Door 14 | . . . . . . . . . . . . . . . . . . . . . . . 1 . 1 6 1 . . . . . . . 1 . . . 2 2 . . Level Access Points 6 | . . . . . . . . . . . . . . . . . . . . . . . . . . . . . 1 . . . . . . 1 . 1 2 1 . . Branch Access Points 18 | . . . 1 . . . 1 1 . 1 . . . . . 1 . 1 . . . . 1 . 1 1 . . 1 1 . 1 1 . 1 1 2 . . 1 . . Machine Index 14 | . . . . . . . . . . 1 . . . . . . . 1 . . . . 1 . 1 1 . . 1 1 . 1 1 . 1 2 1 1 . . . . Terminal Index 10 | . . . 1 . . . 1 1 . . . . . . . . . 1 . . . . . . 1 1 . . 1 . . . . . . . . . 1 1 1 . Fabricator Index 3 | . . . . . . . . 1 . 1 . . . . . . . . . . . . . . . . . . . . . . . . . . . . . 1 . . Scanalyzer Index 1 | . . . . . . . . . . . . . . . . . . 1 . . . . . . . . . . . . . . . . . . . . . . . . Alert Level 67 | . 2 . 5 . . 1 4 1 . 1 . . . . . 2 . 1 . . . . 2 . 3 4 1 . 2 2 . 2 5 . 3 8 3 5 8 2 . . Unreport Threat 54 | . . . 2 . . . 3 . . 2 . . . . . 1 . . . . . . 1 . 3 3 . . 2 3 . 1 6 . 6 2 2 9 4 4 . . Recall Investigation 9 | . . . . . . . . . . 1 . . . . . . . . . . . . . . 1 1 2 . 1 1 . 1 1 . . . . . . . . . Recall Extermination 4 | . . . . . . . . . . . . . . . . . . . . . . . . . . . . . . . . . 1 . 1 . . 2 . . . . Recall Reinforcements 6 | . . . . . . . 1 . . . . . . . . . . . . . . . . . 2 1 . . 1 1 . . . . . . . . . . . . Recall Assault 1 | . . . 1 . . . . . . . . . . . . . . . . . . . . . . . . . . . . . . . . . . . . . . . Hauler Manifests 8 | . 1 . 1 . . . 1 1 . 1 . . . . . . . 1 . . . . . . . . . . . 1 . . . . . . . 1 . . . . Registered Components 1 | . . . . . . . 1 . . . . . . . . . . . . . . . . . . . . . . . . . . . . . . . . . . . Zone Layout 85 | . 3 . 5 . . 1 5 1 . 1 . . . . . 2 . 3 . . . . 4 . 3 7 1 . 8 2 . 1 7 . 3 6 5 6 9 2 . . Gate Test 138-A 1 | . . . . . . . . . . . . . . . . . . . . . . . . . . . . . . . . . . . . . . . . . . 1 Gate Test 138-B 1 | . . . . . . . . . . . . . . . . . . . . . . . . . . . . . . . . . . . . . . . . . . 1 Fabricator Hacks 111 | . . . . . . . . 14 . 2 . . . . . 9 . 7 . . . . 6 . 13 . . . . 5 . 12 6 . 7 . 8 15 . 7 . . Load Schematic 41 | . . . . . . . . 5 . 1 . . . . . 3 . 3 . . . . 2 . 4 . . . . 2 . 5 2 . 3 . 2 6 . 3 . . Build 70 | . . . . . . . . 9 . 1 . . . . . 6 . 4 . . . . 4 . 9 . . . . 3 . 7 4 . 4 . 6 9 . 4 . . Repair Station Hacks 2 | . . . . . . . . . . . . . . . . . . 2 . . . . . . . . . . . . . . . . . . . . . . . . Scan Component 1 | . . . . . . . . . . . . . . . . . . 1 . . . . . . . . . . . . . . . . . . . . . . . . Repair 1 | . . . . . . . . . . . . . . . . . . 1 . . . . . . . . . . . . . . . . . . . . . . . . Recycling Unit Hacks 5 | . 1 . . . . . . . . 1 . . . . . . . . . . . . 1 . . . . . . . . 2 . . . . . . . . . . Retrieve Components 5 | . 1 . . . . . . . . 1 . . . . . . . . . . . . 1 . . . . . . . . 2 . . . . . . . . . . Scanalyzer 20 | . . . . . . . 4 . . . . . . . . . . 2 . . . . . . . . . . . 2 . 4 . . . 8 . . . . . . Insert Component 11 | . . . . . . . 2 . . . . . . . . . . 1 . . . . . . . . . . . 1 . 2 . . . 5 . . . . . . Analyze 9 | . . . . . . . 2 . . . . . . . . . . 1 . . . . . . . . . . . 1 . 2 . . . 3 . . . . . . Garrison Access Hacks 19 | . . . . . . . 1 1 . . . . . . . 3 . 2 . . . . 1 . 1 . . . 2 1 . 2 . . 1 1 . 1 1 1 . . Seal Access 19 | . . . . . . . 1 1 . . . . . . . 3 . 2 . . . . 1 . 1 . . . 2 1 . 2 . . 1 1 . 1 1 1 . . Unauthorized Hacks 451 | . 21 . 27 . . 4 20 20 . 14 . . . . . 24 . 21 . . . . 32 . 24 16 2 . 26 10 . 12 24 . 20 12 28 31 28 26 9 . Terminals 153 | . 7 . 12 . . 2 10 2 . 4 . . . . . 8 . 6 . . . . 11 . 6 8 1 . 13 2 . 1 7 . 7 6 8 10 14 6 2 . Track 8 | . 1 . 1 . . 1 . . . . . . . . . . . . . . . . 1 . 1 . . . 1 . . . . . 1 . . . 1 . . . Assimilate 29 | . . . 2 . . . 1 1 . 1 . . . . . 3 . 1 . . . . 1 . . 1 . . 2 . . . 1 . 1 2 2 4 4 1 1 . Botnet 101 | . 5 . 8 . . 1 8 1 . 3 . . . . . 3 . 4 . . . . 8 . 4 6 1 . 8 2 . 1 5 . 4 4 6 6 7 5 1 . Detonate 2 | . . . . . . . . . . . . . . . . . . . . . . . . . . . . . 1 . . . . . . . . . 1 . . . Operators 13 | . 1 . 1 . . . 1 . . . . . . . . 2 . 1 . . . . 1 . 1 1 . . 1 . . . 1 . 1 . . . 1 . . . Fabricators 60 | . . . . . . . . 7 . 3 . . . . . 3 . 4 . . . . 5 . 6 . . . . 3 . 5 5 . 3 . 6 5 . 5 . . Report 14 | . . . . . . . . 2 . 1 . . . . . . . . . . . . 1 . 2 . . . . 1 . 1 1 . 1 . 2 1 . 1 . . Prioritize 23 | . . . . . . . . 3 . 1 . . . . . 1 . 2 . . . . 2 . 2 . . . . 1 . 2 2 . 1 . 2 2 . 2 . . Siphon 23 | . . . . . . . . 2 . 1 . . . . . 2 . 2 . . . . 2 . 2 . . . . 1 . 2 2 . 1 . 2 2 . 2 . . Repair Stations . | . . . . . . . . . . . . . . . . . . . . . . . . . . . . . . . . . . . . . . . . . . . Recycling Units 1 | . 1 . . . . . . . . . . . . . . . . . . . . . . . . . . . . . . . . . . . . . . . . . Tunnel 1 | . 1 . . . . . . . . . . . . . . . . . . . . . . . . . . . . . . . . . . . . . . . . . Scanalyzers . | . . . . . . . . . . . . . . . . . . . . . . . . . . . . . . . . . . . . . . . . . . . Garrison Access . | . . . . . . . . . . . . . . . . . . . . . . . . . . . . . . . . . . . . . . . . . . . Data Cores Recovered 5 | . . . . . . . . . . . . . . . . . . . . . . . . . . . . . 1 . . . . . . . . 1 1 1 1 . Used 2 | . . . . . . . . . . . . . . . . . . . . . . . . . . . . . . . . . . . . . . 1 . . 1 . Hacking Detections 127 | . 5 . 8 . . 1 8 6 . 5 . . . . . 6 . 5 . . . . 8 . 6 3 4 . 7 3 . 4 5 . 6 4 6 7 7 10 3 . Full Trace Events 16 | . . . 3 . . . 1 2 . 1 . . . . . . . . . . . . 3 . 1 . 1 . . 1 . . 1 . 1 . . . . . 1 . Feedback Events 2 | . . . . . . . . . . . . . . . . . . . . . . . 1 . . . . . . . . . . . 1 . . . . . . . Corruption 1 | . . . . . . . . . . . . . . . . . . . . . . . 1 . . . . . . . . . . . . . . . . . . . Hackware Fried 1 | . . . . . . . . . . . . . . . . . . . . . . . . . . . . . . . . . . . 1 . . . . . . . Feedback Blocked . | . . . . . . . . . . . . . . . . . . . . . . . . . . . . . . . . . . . . . . . . . . . Robot Schematics Acquired 8 | . . . . . . . . . . . . . . . . . . . . . 7 . . . . . . . . . . . . . . . . 1 . . . . Robots Built 2 | . . . . . . . . . . . . . . . . . . . . . . . . . . . . . . . . . . . . . . 2 . . . . Matter 288 | . . . . . . . . . . . . . . . . . . . . . . . . . . . . . . . . . . . . . . 288 . . . . Time 51 | . . . . . . . . . . . . . . . . . . . . . . . . . . . . . . . . . . . . . . 51 . . . . Total Robot Build Rating 16 | . . . . . . . . . . . . . . . . . . . . . . . . . . . . . . . . . . . . . . 16 . . . . Part Schematics Acquired 52 | . . . . . . . 5 4 . 1 . . . . . 5 . 2 . . 9 . 5 . 1 . . . 1 2 . 3 2 . 7 3 . . 1 1 . . Parts Built 57 | . . . . . . . . 7 . 1 . . . . . 8 . 3 . . . . 4 . 6 . . . . 3 . 6 4 . 3 . 4 5 . 3 . . Matter 13147 | . . . . . . . . 873 . 190 . . . . . 1060 . 545 . . . . 874 . 1370 . . . . 877 . 1266 1228 . 992 . 1353 1463 . 1056 . . Time 2738 | . . . . . . . . 151 . 95 . . . . . 201 . 108 . . . . 295 . 600 . . . . 185 . 163 217 . 142 . 185 226 . 170 . . Total Part Build Rating 383 | . . . . . . . . 29 . 5 . . . . . 48 . 15 . . . . 31 . 41 . . . . 21 . 39 28 . 25 . 36 41 . 24 . . Parts Repaired 1 | . . . . . . . . . . . . . . . . . . 1 . . . . . . . . . . . . . . . . . . . . . . . . Time 50 | . . . . . . . . . . . . . . . . . . 50 . . . . . . . . . . . . . . . . . . . . . . . . Parts Recycled . | . . . . . . . . . . . . . . . . . . . . . . . . . . . . . . . . . . . . . . . . . . . Recycled Matter . | . . . . . . . . . . . . . . . . . . . . . . . . . . . . . . . . . . . . . . . . . . . Retrieved Matter . | . . . . . . . . . . . . . . . . . . . . . . . . . . . . . . . . . . . . . . . . . . . Retrieved Components 10 | . 2 . . . . . . . . 3 . . . . . . . . . . . . 2 . . . . . . . . 3 . . . . . . . . . . Parts Scanalyzed 8 | . . . . . . . 2 . . . . . . . . . . 1 . . . . . . . . . . . 1 . 2 . . . 2 . . . . . . Part Schematics Acquired 8 | . . . . . . . 2 . . . . . . . . . . 1 . . . . . . . . . . . 1 . 2 . . . 2 . . . . . . Parts Damaged 1 | . . . . . . . . . . . . . . . . . . 1 . . . . . . . . . . . . . . . . . . . . . . . . Bothacking | -11 -10 -10 -9 -9 -9 -8 -8 -7 -7 -7 -7 -7 -7 -7 -6 -6 -6 -6 -6 -6 -6 -5 -5 -5 -5 -5 -5 -5 -5 -4 -4 -4 -4 -4 -3 -3 -2 -2 -2 -1 -1 -1 ------------ Run | Scr Mat Min Mat Min Exi Min Mat Fac Was Fac Low Low Zio Dee Pro Fac Was Fac Low Low Dat Pro Fac Was Fac Ext Cet Arc Hub Fac Was Fac Arm Lab Res Qua Res Tes Sec Acc Com Ac0 Used RIF Installer . | . . . . . . . . . . . . . . . . . . . . . . . . . . . . . . . . . . . . . . . . . . . Robots Hacked 2 | . . . . . . . . . . . . . . . . . . . . . . . 1 . . . . . . 1 . . . . . . . . . . . . Non-combat 2 | . . . . . . . . . . . . . . . . . . . . . . . 1 . . . . . . 1 . . . . . . . . . . . . Combat . | . . . . . . . . . . . . . . . . . . . . . . . . . . . . . . . . . . . . . . . . . . . Robot Hacks Applied 2 | . . . . . . . . . . . . . . . . . . . . . . . 1 . . . . . . 1 . . . . . . . . . . . . find_chute 2 | . . . . . . . . . . . . . . . . . . . . . . . 1 . . . . . . 1 . . . . . . . . . . . . Relay Couplers Released 2 | . . . . . . . . . . . . . . . . . . . . . . . . . . . . . 1 . . . . . . . . . . 1 . . Machine Destruction 2 | . . . . . . . . . . . . . . . . . . . . . . . . . . . . . 1 . . . . . . . . . . 1 . . Robots Rewired 17 | . . . . . . . . . . . . . . . . . . . . . . . . . . 10 . . . . . . 7 . . . . . . . . . Allies Hacked 1 | . . . . . . . . . . . . . . . . . . . . . . . . . . 1 . . . . . . . . . . . . . . . . Hacks Repelled . | . . . . . . . . . . . . . . . . . . . . . . . . . . . . . . . . . . . . . . . . . . . Allies | -11 -10 -10 -9 -9 -9 -8 -8 -7 -7 -7 -7 -7 -7 -7 -6 -6 -6 -6 -6 -6 -6 -5 -5 -5 -5 -5 -5 -5 -5 -4 -4 -4 -4 -4 -3 -3 -2 -2 -2 -1 -1 -1 -------- Run | Scr Mat Min Mat Min Exi Min Mat Fac Was Fac Low Low Zio Dee Pro Fac Was Fac Low Low Dat Pro Fac Was Fac Ext Cet Arc Hub Fac Was Fac Arm Lab Res Qua Res Tes Sec Acc Com Ac0 Total Allies 99 | . . 3 1 . . . 1 1 19 1 . . 2 . . 3 . 1 . . . . 1 . . 19 5 . 1 . 18 . 8 . 1 1 2 5 4 1 1 . Largest Group 19 | . . 3 2 . . . 1 2 19 1 1 1 3 3 . 2 2 3 1 . . . 1 . . 12 17 10 7 . 18 . 8 . 1 2 2 5 5 2 1 . Highest-Rated Group 936 | . . 40 32 . . . 10 20 487 26 26 26 214 214 . 52 33 43 10 . . . 10 . . 466 936 719 490 . 650 . 386 . 44 70 88 276 141 54 44 . Highest-Rated Ally 156 | . . 16 16 . . . 10 10 35 26 26 26 94 94 . 26 23 23 10 . . . 10 . . 156 148 148 94 . 50 . 56 . 44 44 44 90 39 44 44 . Total Orders 27 | . . . . . . . . . . 2 . . . . . 2 . . . . . . . . . . 1 . . . . . . . . . 6 7 7 2 . . GOTO 14 | . . . . . . . . . . 1 . . . . . 1 . . . . . . . . . . 1 . . . . . . . . . 3 4 3 1 . . FOLLOW 13 | . . . . . . . . . . 1 . . . . . 1 . . . . . . . . . . . . . . . . . . . . 3 3 4 1 . . Ally Attacks 371 | . . 6 12 . . . . . 108 . . . . 18 . . . . . . . . . . . 64 4 21 53 . 58 . 8 . . . . 19 . . . . Total Damage 12067 | . . 56 135 . . . . . 3728 . . . . 401 . . . . . . . . . . . 1283 130 710 1948 . 2842 . 426 . . . . 408 . . . . Kills 54 | . . 3 2 . . . . . 12 . . . . 1 . . . . . . . . . . . 4 2 4 13 . 9 . 1 . . . . 3 . . . . Allies Corrupted 2 | . . . . . . . . . . . . . . . . . . . . . . . . . . 1 . . . . . . . . . . . . 1 . . . Allies Melted 1 | . . . . . . . . . . . . . . 1 . . . . . . . . . . . . . . . . . . . . . . . . . . . . Intel | -11 -10 -10 -9 -9 -9 -8 -8 -7 -7 -7 -7 -7 -7 -7 -6 -6 -6 -6 -6 -6 -6 -5 -5 -5 -5 -5 -5 -5 -5 -4 -4 -4 -4 -4 -3 -3 -2 -2 -2 -1 -1 -1 ------- Run | Scr Mat Min Mat Min Exi Min Mat Fac Was Fac Low Low Zio Dee Pro Fac Was Fac Low Low Dat Pro Fac Was Fac Ext Cet Arc Hub Fac Was Fac Arm Lab Res Qua Res Tes Sec Acc Com Ac0 Robot Analysis Total 2 | . . . . . . . . . . . . . . . . . . . . . . . . . . . . . . . . . . . . . . 2 . . . . Derelict Logs Recovered 10 | . . 1 . 1 . . . . . . . 1 2 . 2 . . . 1 1 . 1 . . . . . . . . . . . . . . . . . . . . Drone Launches . | . . . . . . . . . . . . . . . . . . . . . . . . . . . . . . . . . . . . . . . . . . . Drone Recoveries . | . . . . . . . . . . . . . . . . . . . . . . . . . . . . . . . . . . . . . . . . . . . Exploration | -11 -10 -10 -9 -9 -9 -8 -8 -7 -7 -7 -7 -7 -7 -7 -6 -6 -6 -6 -6 -6 -6 -5 -5 -5 -5 -5 -5 -5 -5 -4 -4 -4 -4 -4 -3 -3 -2 -2 -2 -1 -1 -1 ------------- Run | Scr Mat Min Mat Min Exi Min Mat Fac Was Fac Low Low Zio Dee Pro Fac Was Fac Low Low Dat Pro Fac Was Fac Ext Cet Arc Hub Fac Was Fac Arm Lab Res Qua Res Tes Sec Acc Com Ac0 Turns Passed 23422 | 25 360 294 1187 221 48 236 597 617 88 550 77 191 252 483 334 637 53 584 287 82 126 397 1209 19 1639 436 217 63 357 389 80 695 859 44 658 521 1030 1532 619 2214 2492 623 Spaces Moved 35576 | 42 536 509 1693 509 142 336 717 927 186 913 183 353 603 685 510 846 151 763 470 262 153 446 1638 59 879 565 207 42 699 642 246 1104 1263 24 807 905 889 1256 1486 3603 5119 2208 Core 220 | 42 175 . . . . . . . . . . . . . . . . . . . . . . . . 2 . . . . . . 1 . . . . . . . . . Treads . | . . . . . . . . . . . . . . . . . . . . . . . . . . . . . . . . . . . . . . . . . . . Legs . | . . . . . . . . . . . . . . . . . . . . . . . . . . . . . . . . . . . . . . . . . . . Wheels . | . . . . . . . . . . . . . . . . . . . . . . . . . . . . . . . . . . . . . . . . . . . Hover . | . . . . . . . . . . . . . . . . . . . . . . . . . . . . . . . . . . . . . . . . . . . Flight 35356 | . 361 509 1693 509 142 336 717 927 186 913 183 353 603 685 510 846 151 763 470 262 153 446 1638 59 879 563 207 42 699 642 246 1104 1262 24 807 905 889 1256 1486 3603 5119 2208 Fastest Speed 6 | 50 37 37 34 34 34 34 29 29 29 29 32 32 32 16 29 29 29 28 28 28 28 30 17 14 14 14 14 26 26 13 13 13 26 26 14 26 14 18 10 10 6 10 Average Speed 22 | 50 42 37 34 34 34 34 30 29 29 30 32 32 32 31 31 30 29 29 28 28 28 30 27 21 26 26 25 26 26 25 23 25 26 26 25 26 21 20 20 10 9 10 Slowest Speed 150 | 50 50 37 37 34 34 34 34 29 29 32 32 32 32 32 32 31 29 34 28 28 30 30 30 26 27 150 26 26 29 26 26 26 150 26 26 26 26 21 21 21 21 21 Overloaded Moves 153 | . . . . . . . . . . . . . . . . . . . . . . . 5 24 3 11 13 . . . . . . . 9 . 8 . . . 80 . Propulsion Burnouts . | . . . . . . . . . . . . . . . . . . . . . . . . . . . . . . . . . . . . . . . . . . . Robots Hopped 59 | . 7 2 4 . . . . . . . . . . 1 . . . . . . . . 4 . . 2 . . . 4 . 4 1 . . . . 1 2 3 24 . Cave-ins Triggered 1 | . . . . . . . . . . . . . . . . . . . . . . . . . . . . . . . . 1 . . . . . . . . . . Teleports 2 | . . . . . . . . . . . . . . . . . . . . . . . . . . . . . . . . . . . . . . . . . 1 1 Exploration Rate (%) 55 | 3 76 69 96 75 59 63 60 15 83 30 42 57 75 66 64 22 78 16 55 50 70 58 43 59 20 76 72 56 78 19 88 25 62 5 26 78 15 92 74 69 78 89 Regions Visited 42 Branch Regions 24 Pre-discovered Areas 3 | . 1 1 . . . . . . . . . . . . . . . . . . 1 . . . . . . . . . . . . . . . . . . . . . Known Exits Taken 31 | . . . 1 1 1 1 1 . . 1 1 1 1 1 1 . . 1 1 1 1 1 . . 1 1 1 1 1 . . 1 1 1 1 1 1 1 1 1 1 . Unknown Exits Taken 3 | 1 1 1 . . . . . . . . . . . . . . . . . . . . . . . . . . . . . . . . . . . . . . . . Scrap Searched 21 | . . 1 . 2 . 1 . . . . 4 3 2 . 1 . . . 2 4 . 1 . . . . . . . . . . . . . . . . . . . . Spaces Dug 293 | . 3 . 12 7 . . 6 6 1 15 . . . 12 12 16 . 7 1 . . 5 26 . 4 . 1 . 18 9 . 18 13 . 19 20 8 2 9 24 13 6 Terrain Destroyed 632 | . 3 . 12 7 . . 6 6 1 15 . . . 12 12 16 . 7 1 . . 5 26 . 4 . 1 . 299 9 . 18 13 . 19 20 8 2 9 24 71 6 Melee 293 | . 3 . 12 7 . . 6 6 1 15 . . . 12 12 16 . 7 1 . . 5 26 . 4 . 1 . 18 9 . 18 13 . 19 20 8 2 9 24 13 6 Projectile . | . . . . . . . . . . . . . . . . . . . . . . . . . . . . . . . . . . . . . . . . . . . AOE 339 | . . . . . . . . . . . . . . . . . . . . . . . . . . . . . 281 . . . . . . . . . . . 58 . Actions | -11 -10 -10 -9 -9 -9 -8 -8 -7 -7 -7 -7 -7 -7 -7 -6 -6 -6 -6 -6 -6 -6 -5 -5 -5 -5 -5 -5 -5 -5 -4 -4 -4 -4 -4 -3 -3 -2 -2 -2 -1 -1 -1 --------- Run | Scr Mat Min Mat Min Exi Min Mat Fac Was Fac Low Low Zio Dee Pro Fac Was Fac Low Low Dat Pro Fac Was Fac Ext Cet Arc Hub Fac Was Fac Arm Lab Res Qua Res Tes Sec Acc Com Ac0 Total 49010 | 44 588 610 2077 536 141 431 980 1260 219 1109 197 411 660 890 633 1196 159 1092 589 269 217 698 2259 64 2193 819 364 89 825 842 267 1471 1700 61 1194 1161 1707 2502 1764 5352 6822 2548 Wait 8838 | . 4 94 96 1 . 53 105 310 28 114 13 16 55 108 40 284 7 277 42 4 17 233 391 5 1202 171 139 24 49 151 20 263 213 38 252 149 730 1132 151 1350 441 66 Move 35428 | 41 522 504 1685 508 141 335 716 927 185 912 182 352 602 682 509 846 150 762 469 261 152 445 1631 58 878 559 206 41 698 635 245 1095 1260 23 806 904 888 1253 1481 3596 5076 2207 Hop 43 | . 6 2 3 . . . . . . . . . . 1 . . . . . . . . 2 . . 2 . . . 3 . 3 1 . . . . 1 2 3 14 . Pick Up 121 | . 1 . 7 . . . 5 3 1 1 . 2 . 4 . 1 1 1 4 1 1 1 2 . 2 . . 3 2 3 2 6 4 . 2 9 3 2 4 13 25 5 Fast Attach 146 | 3 3 2 8 . . 2 6 3 . 5 . . 1 5 1 6 . 1 . . 3 . 7 1 9 . . . 2 . . 6 7 . 5 1 1 4 15 2 26 11 Attach 25 | . 1 . . . . . . 1 . . . 1 . . . 1 . . . . . 1 . . . . . . . 2 . 1 1 . 2 1 . . 7 2 1 3 Detach 3 | . . . . . . . . . . . . . . . . . . . . . . . . . . . . . . . . . . . . . . . 2 . . 1 Swap 66 | . . . . . . . 1 2 . 2 . . 1 11 . 8 . 4 . . . . 3 . 1 . . . 1 6 . 4 5 . . 6 4 3 1 . 2 1 Drop 194 | . 2 . 6 1 . 2 5 5 1 4 . 1 1 9 . 11 1 2 3 1 4 . 9 . 6 . 1 2 5 2 . 10 14 . 2 10 6 7 8 14 28 11 Fire 24 | . 3 . . . . . . . . . . . . 16 . . . . . . . . 1 . . . . . . 1 . . . . . 3 . . . . . . Melee 2486 | . 44 1 202 18 . 25 108 9 1 47 2 15 . 24 49 31 . 27 34 1 18 10 115 . 67 39 9 8 60 24 . 51 104 . 75 59 45 61 62 235 655 151 Ram . | . . . . . . . . . . . . . . . . . . . . . . . . . . . . . . . . . . . . . . . . . . . Kick . | . . . . . . . . . . . . . . . . . . . . . . . . . . . . . . . . . . . . . . . . . . . Crush . | . . . . . . . . . . . . . . . . . . . . . . . . . . . . . . . . . . . . . . . . . . . Escape Stasis 128 | . . . . . . . . . . . . . . . . . . . . . . . 38 . . 6 . . . . . 1 . . . . . . . 18 65 . Rewire 34 | . . . . . . . . . . . . . . . . . . . . . . . . . . 16 . . . . . . 18 . . . . . . . . . Trap . | . . . . . . . . . . . . . . . . . . . . . . . . . . . . . . . . . . . . . . . . . . . Miscellaneous 1474 | . 2 7 70 8 . 14 34 . 3 24 . 24 . 30 34 8 . 18 37 1 22 8 60 . 28 26 9 11 8 15 . 31 73 . 50 19 30 39 31 119 489 92 Route ------- -11/Scrapyard -10/Materials (discovered 4 exits: *Mat x3 / [*Min]) -10/Mines (discovered 2 exits: *Mat x2) -9/Materials (discovered 6 exits: *Mat x3 / *Min / *Sto x2) -9/Mines -9/Exiles -8/Mines (discovered 2 exits: *Mat x2) -8/Materials (discovered 2 exits: *Fac x2) -7/Factory (discovered 2 exits: *Low x2) -7/Waste -7/Factory (discovered 2 exits: *Low x2) -7/Lower Caves -7/Lower Caves (discovered 2 exits: *Fac / *Zio) -7/Zion -7/Deep Caves -6/Proximity Caves -6/Factory (discovered 3 exits: Fac / *Low x2) -6/Waste -6/Factory (discovered 2 exits: *Low x2) -6/Lower Caves -6/Lower Caves -6/Data Miner -5/Proximity Caves -5/Factory (discovered 6 exits: *Fac x2 / *Upp x2 / *Ext x2) -5/Waste -5/Factory (discovered 4 exits: Upp x2 / *Ext x2) -5/Extension (discovered 2 exits: *Fac / *Cet) -5/Cetus -5/Archives -5/Hub_04(d) (discovered 4 exits: *Fac x4) -4/Factory (discovered 3 exits: *Upp x2 / Arm) -4/Waste -4/Factory (discovered 3 exits: Upp x2 / *Arm) -4/Armory (discovered 2 exits: *Res / *Lab) -4/Lab -3/Research (discovered 2 exits: *Qua x2) -3/Quarantine -2/Research (discovered 3 exits: *Acc / *Tes x2) -2/Testing (discovered 2 exits: *Acc / *Sec) -2/Section 7 -1/Access (discovered 2 exits: *Sur / *Com) -1/Command (discovered 2 exits: *Sur / *Ac0) -1/Access_0 Tau Ceti IV Orbit History --------- Turn | Location | Event 4 | -11/Scrapyard | Upgraded with Propulsion slot (x1) 4 | -11/Scrapyard | Upgraded with Utility slot (x2) 4 | -11/Scrapyard | Upgraded with Weapon slot (x1) 7 | -11/Scrapyard | Discovered new exit (range 15) 26 | -11/Scrapyard | Entered Materials 60 | -10/Materials | Discovered new exit (range 15) 213 | -10/Materials | Discovered new exit (range 15) 287 | -10/Materials | Discovered new exit (range 13) 303 | -10/Materials | Build established: Mutant 361 | -10/Materials | Discovered new exit (range 6) 386 | -10/Materials | Entered Mines 405 | -10/Mines | A weapon hastily lodged in a ceiling crevice suddenly fell to the ground 443 | -10/Mines | Discovered new exit (range 7) 512 | -10/Mines | Discovered new exit (range 16) 523 | -10/Mines | Assisted by bots powering up and referring to "LRC-V3" 659 | -10/Mines | Reached level 2 659 | -10/Mines | Upgraded with Utility slot (x1) 675 | -10/Mines | Learned location of Storage (-9) 680 | -10/Mines | Entered Materials 680 | -9/Materials | Accompanied by 2 allies 682 | -9/Materials | Reached level 3 682 | -9/Materials | Upgraded with Propulsion slot (x1) 732 | -9/Materials | Discovered new exit (range 6) 839 | -9/Materials | Identified exit to Mines 839 | -9/Materials | Identified exit to Storage 867 | -9/Materials | Reached level 4 871 | -9/Materials | Upgraded with Utility slot (x1) 1029 | -9/Materials | Discovered new exit (range 7) 1032 | -9/Materials | Identified exit to Materials 1190 | -9/Materials | Reached level 5 1198 | -9/Materials | Upgraded with Utility slot (x1) 1225 | -9/Materials | Build established: Scavenger-Mutant 1350 | -9/Materials | Reached level 6 1480 | -9/Materials | First assault squad dispatched 1490 | -9/Materials | Discovered exit to Materials (range 17) 1544 | -9/Materials | Reached level 7 1547 | -9/Materials | Upgraded with Weapon slot (x1) 1791 | -9/Materials | Reached level 8 1793 | -9/Materials | Upgraded with Utility slot (x1) 1838 | -9/Materials | Discovered exit to Materials (range 3) 1867 | -9/Materials | Entered Mines 1886 | -9/Mines | Learned 2 Materials zone layouts 2071 | -9/Mines | Deemed a non-threat by the Exiles lab entrance 2071 | -9/Mines | Discovered new exit (range 5) 2088 | -9/Mines | Identified exit to Exiles 2088 | -9/Mines | Entered Exiles 2097 | -9/Exiles | Met 8R-AWN 2102 | -9/Exiles | Met EX-HEX 2113 | -9/Exiles | Met EX-BIN 2118 | -9/Exiles | Met EX-DEC 2134 | -9/Exiles | Discovered new exit (range 10) 2136 | -9/Exiles | Identified exit to Mines 2136 | -9/Exiles | Entered Mines 2138 | -8/Mines | Reached level 9 2154 | -8/Mines | Upgraded with Power slot (x1) 2294 | -8/Mines | Discovered exit to Materials (range 11) 2370 | -8/Mines | Discovered exit to Materials (range 7) 2372 | -8/Mines | Entered Materials 2374 | -8/Materials | Reached level 10 2430 | -8/Materials | Reached level 11 2684 | -8/Materials | Core integrity fell below 50% 2719 | -8/Materials | Discovered new exit (range 3) 2896 | -8/Materials | Reached level 12 2910 | -8/Materials | Build established: Hacker-Scout 2922 | -8/Materials | Discovered new exit (range 17) 2964 | -8/Materials | Identified exit to Factory 2969 | -8/Materials | Entered Factory 2969 | -7/Factory | Accompanied by 1 ally 2971 | -7/Factory | Reached level 13 3001 | -7/Factory | Upgraded with Utility slot (x1) 3028 | -7/Factory | Fabricated Spear (x2) 3132 | -7/Factory | Identified exit to Lower Caves 3182 | -7/Factory | Fabricated Microactuators (x2) 3245 | -7/Factory | Fabricated Imp. Melee Analysis Suite (x1) 3267 | -7/Factory | Fabricated Imp. Melee Analysis Suite (x1) 3281 | -7/Factory | Central database locked down 3288 | -7/Factory | Build established: Hacker-Sprinter 3538 | -7/Factory | Fabricated Exp. Signal Interpreter (x1) 3569 | -7/Factory | Local fabrication network quarantined 3586 | -7/Factory | Manually triggered Chute Trap 3586 | -7/Factory | Sucked down chute 3586 | -7/Factory | Entered Waste 3592 | -7/Waste | Spotted C-40 Crusher 3594 | -7/Waste | Spotted C-40 Crusher 3596 | -7/Waste | Spotted C-40 Crusher 3610 | -7/Waste | Warlord forces began an assault 3614 | -7/Waste | Allies destroyed C-40 Crusher 3621 | -7/Waste | Allies destroyed C-40 Crusher 3624 | -7/Waste | Spotted C-40 Crusher 3630 | -7/Waste | Spotted C-40 Crusher 3634 | -7/Waste | Allies destroyed C-40 Crusher 3638 | -7/Waste | Allies destroyed C-40 Crusher 3643 | -7/Waste | Spotted C-40 Crusher 3647 | -7/Waste | Allies destroyed C-40 Crusher 3653 | -7/Waste | Allies destroyed C-40 Crusher 3663 | -7/Waste | Discovered new exit (range 12) 3674 | -7/Waste | Identified exit to Factory 3674 | -7/Waste | Entered Factory 3845 | -7/Factory | Reached level 14 4132 | -7/Factory | Fabricated Imp. Armor Integrity Analyzer? 4141 | -7/Factory | Central database locked down 4224 | -7/Factory | Entered Lower Caves 4224 | -7/Lower Caves | Accompanied by 1 ally 4281 | -7/Lower Caves | Discovered new exit (range 10) 4300 | -7/Lower Caves | Identified exit to Lower Caves 4301 | -7/Lower Caves | Entered another Lower Caves area 4301 | -7/Lower Caves | Accompanied by 1 ally 4302 | -7/Lower Caves | Discovered new exit (range 14) 4393 | -7/Lower Caves | Reached level 15 4397 | -7/Lower Caves | Upgraded with Utility slot (x1) 4423 | -7/Lower Caves | Spotted B-75 Beast 4434 | -7/Lower Caves | Destroyed B-75 Beast 4455 | -7/Lower Caves | Learned 12 Factory zone layouts 4465 | -7/Lower Caves | Discovered new exit (range 13) 4484 | -7/Lower Caves | Identified exit to Zion 4492 | -7/Lower Caves | Entered Zion 4492 | -7/Zion | Accompanied by 1 ally 4508 | -7/Zion | Learned Factory machine intel 4584 | -7/Zion | Given A8's code to call for help 4623 | -7/Zion | Acquired unknown access codes intercepted by a Zionite 4685 | -7/Zion | Enhanced Grunt warped into view, answering call for help 4692 | -7/Zion | Enhanced Grunt warped into view, answering call for help 4705 | -7/Zion | Opened final containment barrier to the Deep Caves 4710 | -7/Zion | Discovered new exit (range 3) 4710 | -7/Zion | Saw the warning signs outside the Deep Caves entrance 4710 | -7/Zion | Identified exit to Deep Caves 4744 | -7/Zion | Entered Deep Caves 4744 | -7/Deep Caves | Accompanied by 3 allies 4784 | -7/Deep Caves | Attacked by Z-Imprinter 4813 | -7/Deep Caves | Destroyed Z-Imprinter 4817 | -7/Deep Caves | Found Prototype Device 4817 | -7/Deep Caves | Identified Zio. Metafield Generator 4848 | -7/Deep Caves | Found Prototype Protection 4848 | -7/Deep Caves | Identified Zio. Weapon Casing 4935 | -7/Deep Caves | Z-Facility disabled 4936 | -7/Deep Caves | Core integrity fell below 50% 5017 | -7/Deep Caves | Discovered new exit (range 7) 5019 | -7/Deep Caves | Identified exit to Proximity Caves 5227 | -7/Deep Caves | Entered Proximity Caves 5229 | -6/Proximity Caves | Reached level 16 5230 | -6/Proximity Caves | Upgraded with Propulsion slot (x1) 5382 | -6/Proximity Caves | Learned Factory garrison access intel 5459 | -6/Proximity Caves | Reached level 17 5491 | -6/Proximity Caves | Discovered new exit (range 4) 5492 | -6/Proximity Caves | Identified exit to Factory 5561 | -6/Proximity Caves | Entered Factory 5562 | -6/Factory | Identified exit to Lower Caves 5563 | -6/Factory | Identified exit to Factory 5563 | -6/Factory | Reached level 18 5563 | -6/Factory | Upgraded with Utility slot (x1) 5564 | -6/Factory | Loaded intel: 265 machine locations 5565 | -6/Factory | Loaded intel: 4 garrison access locations 5739 | -6/Factory | Spotted B-75 Beast 5955 | -6/Factory | Fabricated Lance (x2) 5985 | -6/Factory | Fabricated Lance (x2) 6013 | -6/Factory | Fabricated Adv. Hacking Suite (x1) 6040 | -6/Factory | Fabricated Adv. Hacking Suite (x1) 6046 | -6/Factory | Core integrity fell below 50% 6117 | -6/Factory | Fabricated Adv. System Shield (x1) 6156 | -6/Factory | Fabricated Adv. System Shield (x1) 6198 | -6/Factory | Manually triggered Chute Trap 6198 | -6/Factory | Sucked down chute 6198 | -6/Factory | Entered Waste 6203 | -6/Waste | Spotted C-40 Crusher 6210 | -6/Waste | 2 allies followed down the chute 6212 | -6/Waste | Spotted C-40 Crusher 6221 | -6/Waste | Spotted C-40 Crusher 6236 | -6/Waste | Spotted C-40 Crusher 6238 | -6/Waste | Discovered new exit (range 16) 6238 | -6/Waste | Spotted C-40 Crusher 6238 | -6/Waste | Spotted C-40 Crusher 6243 | -6/Waste | Identified exit to Factory 6251 | -6/Waste | Entered Factory 6251 | -6/Factory | Accompanied by 2 allies 6321 | -6/Factory | Build established: Wizard-Sprinter 6438 | -6/Factory | Repaired Broken Cld. Cesium-ion Thruster 6495 | -6/Factory | Spotted B-75 Beast 6535 | -6/Factory | Fabricated Adv. Melee Analysis Suite (x1) 6560 | -6/Factory | Fabricated Adv. Melee Analysis Suite (x1) 6600 | -6/Factory | Fabricated Cld. Cesium-ion Thruster (x1) 6757 | -6/Factory | Local fabrication network quarantined 6835 | -6/Factory | Entered Lower Caves 6835 | -6/Lower Caves | Accompanied by 1 ally 6847 | -6/Lower Caves | Encountered a Warlord checkpoint 6911 | -6/Lower Caves | Attracted the attention of an 0b10 checkpoint 6953 | -6/Lower Caves | Learned location of 1 exit from Factory 6963 | -6/Lower Caves | Reached level 19 7117 | -6/Lower Caves | Discovered new exit (range 15) 7121 | -6/Lower Caves | Identified exit to Lower Caves 7122 | -6/Lower Caves | Entered another Lower Caves area 7202 | -6/Lower Caves | Discovered new exit (range 10) 7204 | -6/Lower Caves | Identified exit to Data Miner 7204 | -6/Lower Caves | Entered Data Miner 7204 | -6/Data Miner | Discovered new exit (range 6) 7210 | -6/Data Miner | Met Data Miner 7216 | -6/Data Miner | Learned location of Section 7 (-2) 7216 | -6/Data Miner | Acquired the access code to Warlord's prototype stash 7220 | -6/Data Miner | Received God Mode back door access code from Data Miner 7227 | -6/Data Miner | Destroyed Data Miner 7230 | -6/Data Miner | Found Prototype Hackware 7230 | -6/Data Miner | Identified Ghost Barrier 7232 | -6/Data Miner | Found Prototype Hackware 7232 | -6/Data Miner | Identified Deep Network Scanner 7234 | -6/Data Miner | Found Prototype Hackware 7234 | -6/Data Miner | Identified System Mapper 7240 | -6/Data Miner | Data Conduit disabled 7329 | -6/Data Miner | Identified exit to Proximity Caves 7330 | -6/Data Miner | Entered Proximity Caves 7332 | -5/Proximity Caves | Reached level 20 7333 | -5/Proximity Caves | Upgraded with Utility slot (x1) 7433 | -5/Proximity Caves | Learned Factory terminal intel 7487 | -5/Proximity Caves | Attracted the attention of an 0b10 checkpoint 7523 | -5/Proximity Caves | Discovered exit to Factory (range 15) 7702 | -5/Proximity Caves | Received a Behemoth hack from an annoying Tinkerer 7727 | -5/Proximity Caves | Entered Factory 7728 | -5/Factory | Identified exit to Extension 7729 | -5/Factory | Identified exit to Factory 7729 | -5/Factory | Reached level 21 7730 | -5/Factory | Loaded intel: 21 terminal locations 7828 | -5/Factory | Discovered new exit (range 5) 7828 | -5/Factory | Identified exit to Upper Caves 7851 | -5/Factory | Discovered exit to Extension (range 10) 7885 | -5/Factory | Spotted B-75 Beast 8163 | -5/Factory | Fabricated Adv. Armor Integrity Analyzer? 8213 | -5/Factory | Destroyed 8 combat bots 8369 | -5/Factory | Reached level 22 8373 | -5/Factory | Upgraded with Utility slot (x1) 8513 | -5/Factory | Fabricated Enh. Force Lance (x1) 8580 | -5/Factory | Fabricated Enh. Force Lance (x1) 8627 | -5/Factory | First assault squad dispatched 8646 | -5/Factory | Fabricated Enh. Force Lance (x1) 8733 | -5/Factory | Local fabrication network quarantined 8737 | -5/Factory | Core integrity fell below 50% 8746 | -5/Factory | Core integrity fell below 20% 8817 | -5/Factory | Discovered exit to Factory (range 5) 8936 | -5/Factory | Manually triggered Chute Trap 8936 | -5/Factory | Sucked down chute 8936 | -5/Factory | Entered Waste 8938 | -5/Waste | Spotted C-40 Crusher 8939 | -5/Waste | Spotted C-40 Crusher 8941 | -5/Waste | Spotted C-40 Crusher 8943 | -5/Waste | Spotted C-40 Crusher 8943 | -5/Waste | Spotted C-40 Crusher 8946 | -5/Waste | Discovered new exit (range 16) 8950 | -5/Waste | Identified exit to Factory 8955 | -5/Waste | Entered Factory 9313 | -5/Factory | Fabricated Cld. Nuclear Pulse Thruster (x1) 9388 | -5/Factory | Fabricated Plasma Lance? 9557 | -5/Factory | Fabricated Plasma Lance? 10065 | -5/Factory | Fabricated Plasma Lance (x1) 10524 | -5/Factory | Fabricated Nanoactuators (x2) 10594 | -5/Factory | Entered Extension 10596 | -5/Extension | Reached level 23 10599 | -5/Extension | Disrupted transfer network 10613 | -5/Extension | Rescued A7 10640 | -5/Extension | Rescued a captive Derelict 10641 | -5/Extension | Rescued a captive Derelict 10695 | -5/Extension | Rescued a captive Derelict 10725 | -5/Extension | Spotted B-75 Beast 10730 | -5/Extension | Spotted B-75 Beast 10746 | -5/Extension | Destroyed B-75 Beast 10761 | -5/Extension | Allies destroyed B-75 Beast 10779 | -5/Extension | Destroyed 7 combat bots 10796 | -5/Extension | Central database locked down 10796 | -5/Extension | Rescued a captive Derelict 10798 | -5/Extension | Rescued a captive Derelict 10827 | -5/Extension | Identified exit to Cetus 10868 | -5/Extension | Rescued a captive Derelict 10885 | -5/Extension | Rescued a captive Derelict 10885 | -5/Extension | Rescued a captive Derelict 10899 | -5/Extension | Discovered exit to Factory (range 10) 11030 | -5/Extension | Entered Cetus 11030 | -5/Cetus | Accompanied by 12 allies 11035 | -5/Cetus | Acquired a Cetus Manufacturing Module code from A7 11038 | -5/Cetus | Spotted Cetus Guard 11038 | -5/Cetus | Spotted Cetus Guard 11038 | -5/Cetus | Spotted Cetus Guard 11039 | -5/Cetus | Spotted Cetus Guard 11040 | -5/Cetus | Destroyed Cetus Guard 11047 | -5/Cetus | Allies destroyed Cetus Guard 11047 | -5/Cetus | Destroyed Cetus Guard 11050 | -5/Cetus | Destroyed Cetus Guard 11072 | -5/Cetus | Started Cetus Manufacturing Module 11097 | -5/Cetus | Manufactured an Enhanced Grunt 11107 | -5/Cetus | Escorted A7 to Cetus Mainframe 11117 | -5/Cetus | Discovered new exit (range 15) 11122 | -5/Cetus | Manufactured an Enhanced Grunt 11128 | -5/Cetus | Found a strange terminal 11147 | -5/Cetus | Manufactured an Enhanced Grunt 11151 | -5/Cetus | Central database locked down 11172 | -5/Cetus | Manufactured an Enhanced Grunt 11197 | -5/Cetus | Manufactured an Enhanced Grunt 11231 | -5/Cetus | Identified exit to Archives 11247 | -5/Cetus | Entered Archives 11247 | -5/Archives | Accompanied by 10 allies 11252 | -5/Archives | Received a hacking code to weaken MAIN.C 11263 | -5/Archives | Reached level 24 11265 | -5/Archives | Upgraded with Weapon slot (x1) 11283 | -5/Archives | Discovered new exit (range 16) 11287 | -5/Archives | Identified exit to Hub_04(d) 11310 | -5/Archives | Entered Hub_04(d) 11310 | -5/Hub_04(d) | Accompanied by 6 allies 11321 | -5/Hub_04(d) | Discovered exit to Factory (range 16) 11459 | -5/Hub_04(d) | Spotted B-75 Beast 11523 | -5/Hub_04(d) | Central database locked down 11619 | -5/Hub_04(d) | Disrupted transfer network 11640 | -5/Hub_04(d) | Network Hub disabled 11640 | -5/Hub_04(d) | Network Hub disabled 11645 | -5/Hub_04(d) | Spotted Lightning 11645 | -5/Hub_04(d) | Spotted Lightning 11667 | -5/Hub_04(d) | Entered Factory 11669 | -4/Factory | Reached level 25 11762 | -4/Factory | Discovered new exit (range 7) 11764 | -4/Factory | Identified exit to Upper Caves 11808 | -4/Factory | Identified exit to Armory 11834 | -4/Factory | Central database locked down 11884 | -4/Factory | Fabricated Plasma Lance (x1) 11933 | -4/Factory | Fabricated Exp. Melee Analysis Suite (x1) 11976 | -4/Factory | Local fabrication network quarantined 11984 | -4/Factory | Fabricated Exp. Melee Analysis Suite (x1) 12056 | -4/Factory | Manually triggered Chute Trap 12056 | -4/Factory | Sucked down chute 12056 | -4/Factory | Entered Waste 12059 | -4/Waste | Found Prototype Processor 12064 | -4/Waste | Spotted C-40 Crusher 12068 | -4/Waste | Spotted C-40 Crusher 12068 | -4/Waste | Spotted C-40 Crusher 12094 | -4/Waste | Spotted C-40 Crusher 12096 | -4/Waste | Warlord forces began an assault 12098 | -4/Waste | Spotted C-40 Crusher 12099 | -4/Waste | Spotted C-40 Crusher 12109 | -4/Waste | Allies destroyed C-40 Crusher 12116 | -4/Waste | Allies destroyed C-40 Crusher 12122 | -4/Waste | Discovered new exit (range 16) 12136 | -4/Waste | Identified exit to Factory 12136 | -4/Waste | Entered Factory 12236 | -4/Factory | Found Prototype Launcher 12236 | -4/Factory | Identified Com. Tesla Bomb Launcher 12244 | -4/Factory | Central database locked down 12304 | -4/Factory | Fabricated Mni. Fusion Reactor (x1) 12337 | -4/Factory | Fabricated Mni. Fusion Reactor (x1) 12358 | -4/Factory | Fabricated Adv. System Shield (x1) 12389 | -4/Factory | Crushed by falling debris 12470 | -4/Factory | Spotted B-86 Titan 12536 | -4/Factory | Identified Exp. Core Analyzer 12662 | -4/Factory | Fabricated Adv. Hacking Suite (x1) 12684 | -4/Factory | Fabricated Adv. Actuator Array (x1) 12702 | -4/Factory | Fabricated Adv. Hacking Suite (x1) 12831 | -4/Factory | Entered Armory 12881 | -4/Armory | Reached level 26 12889 | -4/Armory | Upgraded with Utility slot (x1) 12922 | -4/Armory | Found Exp. System Shield 12925 | -4/Armory | Found Exp. Melee Analysis Suite 13048 | -4/Armory | Destroyed 8 combat bots 13108 | -4/Armory | Destroyed 8 combat bots 13156 | -4/Armory | Core integrity fell below 50% 13198 | -4/Armory | Destroyed 15 combat bots 13220 | -4/Armory | Spotted B-86 Titan 13222 | -4/Armory | Central database locked down 13243 | -4/Armory | Destroyed B-86 Titan 13361 | -4/Armory | Fabricated Cld. Field Propulsion Drive (x1) 13392 | -4/Armory | Fabricated Cld. Field Propulsion Drive (x1) 13396 | -4/Armory | Fabricated Cld. Field Propulsion Drive? 13425 | -4/Armory | Fabricated Cld. Field Propulsion Drive (x1) 13579 | -4/Armory | Reached level 27 13625 | -4/Armory | Destroyed 11 combat bots 13627 | -4/Armory | Discovered new exit (range 4) 13642 | -4/Armory | Discovered new exit (range 13) 13687 | -4/Armory | Identified exit to Lab 13690 | -4/Armory | Entered Lab 13690 | -4/Lab | Discovered new exit (range 9) 13692 | -4/Lab | Identified exit to Research 13694 | -4/Lab | Unable to decrypt terminal 13734 | -4/Lab | Entered Research 13736 | -3/Research | Reached level 28 13755 | -3/Research | Identified exit to Quarantine 13783 | -3/Research | Spotted B-86 Titan 13798 | -3/Research | Destroyed B-86 Titan 13873 | -3/Research | Spotted B-86 Titan 13880 | -3/Research | Core integrity fell below 50% 13886 | -3/Research | Destroyed B-86 Titan 14186 | -3/Research | Fabricated Femtoactuators (x1) 14220 | -3/Research | Fabricated Exp. Hacking Suite (x1) 14247 | -3/Research | Adv. Hacking Suite fried by hacking feedback 14284 | -3/Research | Fabricated Exp. Armor Integrity Analyzer (x1) 14346 | -3/Research | Local fabrication network quarantined 14392 | -3/Research | Entered Quarantine 14392 | -3/Quarantine | Accompanied by 1 ally 14394 | -3/Quarantine | Reached level 29 14395 | -3/Quarantine | Upgraded with Utility slot (x1) 14433 | -3/Quarantine | Found Alien Artifact 14436 | -3/Quarantine | Found Alien Artifact 14438 | -3/Quarantine | Identified exit to Research 14444 | -3/Quarantine | Found Alien Artifact 14469 | -3/Quarantine | Identified Transdimensional Reconstructor 14469 | -3/Quarantine | Identified Hpw. Transdimensional Reconstructor 14469 | -3/Quarantine | Identified Core Reset Matrix 14503 | -3/Quarantine | Cryocooling Duct disabled 14518 | -3/Quarantine | Ambient heat levels rising (+20) 14518 | -3/Quarantine | Non-combat units ordered to evacuate 14548 | -3/Quarantine | Build established: Machinist-Sprinter 14605 | -3/Quarantine | Met incapacitated Sigix Warrior 14605 | -3/Quarantine | Lockdown squad dispatched 14646 | -3/Quarantine | Spotted Alpha 7 14651 | -3/Quarantine | Destroyed Alpha 7 14666 | -3/Quarantine | Spotted Lightning 14713 | -3/Quarantine | Spotted Lightning 14716 | -3/Quarantine | Spotted Lightning 14716 | -3/Quarantine | Destroyed Lightning 14721 | -3/Quarantine | Destroyed Lightning 14724 | -3/Quarantine | Found Prototype Device 14725 | -3/Quarantine | Identified EM Dispersion Field 14783 | -3/Quarantine | Destroyed Lightning 14785 | -3/Quarantine | Found Exp. Phase Shifter 14857 | -3/Quarantine | Found Alien Artifact 14913 | -3/Quarantine | Entered Research 14915 | -2/Research | Reached level 30 14940 | -2/Research | Identified exit to Testing 15094 | -2/Research | Spotted B-90 Cyclops 15110 | -2/Research | Destroyed B-90 Cyclops 15111 | -2/Research | Core integrity fell below 50% 15144 | -2/Research | Build established: Wizard-Sprinter 15181 | -2/Research | Fabricated Cld. Q-thruster (x1) 15220 | -2/Research | Fabricated Cld. Q-thruster? 15266 | -2/Research | Fabricated Cld. Q-thruster (x1) 15336 | -2/Research | Reached level 31 15456 | -2/Research | Discovered new exit (range 11) 15463 | -2/Research | Identified exit to Access 15568 | -2/Research | Fabricated Zero-point Reactor (x1) 15904 | -2/Research | Local fabrication network quarantined 15943 | -2/Research | Entered Testing 16198 | -2/Testing | Fabricated Zero-point Reactor (x1) 16242 | -2/Testing | Fabricated Exp. Actuator Array (x1) 16267 | -2/Testing | Fabricated Adv. Reaction Control System (x1) 16502 | -2/Testing | Fabricated Exp. Hacking Suite (x1) 16551 | -2/Testing | Fabricated Exp. Hacking Suite (x1) 16966 | -2/Testing | Reached level 32 17019 | -2/Testing | Fabricated P-80 Master (x2) 17041 | -2/Testing | Local fabrication network quarantined 17087 | -2/Testing | Found Prototype Device 17118 | -2/Testing | Spotted Striker 17157 | -2/Testing | Spotted PY-80P1TUW4JR 17292 | -2/Testing | Spotted Fortress 17324 | -2/Testing | Destroyed Fortress 17329 | -2/Testing | Found EM Dispersion Field 17354 | -2/Testing | Discovered new exit (range 6) 17355 | -2/Testing | Identified exit to Section 7 17475 | -2/Testing | Entered Section 7 17475 | -2/Section 7 | Accompanied by 3 allies 17505 | -2/Section 7 | Spotted S7 Guard 17510 | -2/Section 7 | Destroyed S7 Guard 17518 | -2/Section 7 | Found Alien Artifact 17518 | -2/Section 7 | Identified Core Regenerator 17518 | -2/Section 7 | Used Core Regenerator, restored core integrity (+0) 17553 | -2/Section 7 | Spotted B-90 Cyclops 17597 | -2/Section 7 | Build established: Machinist-Sprinter 17704 | -2/Section 7 | Found Alien Artifact 17704 | -2/Section 7 | Identified Integrity Redistributor 17704 | -2/Section 7 | Used Integrity Redistributor, redistributed integrity from core (-12) 17765 | -2/Section 7 | Found Alien Artifact 17765 | -2/Section 7 | Identified Integrated Reactor 17765 | -2/Section 7 | Installed Integrated Reactor, increased core energy generation (+2%) 17784 | -2/Section 7 | Spotted S7 Guard 17785 | -2/Section 7 | Reached level 33 17789 | -2/Section 7 | Found Alien Artifact 17789 | -2/Section 7 | Identified Integrated Heat Negator 17789 | -2/Section 7 | Installed Integrated Heat Negator, increased core heat dissipation (+2%) 17794 | -2/Section 7 | Destroyed S7 Guard 17824 | -2/Section 7 | Upgraded with Utility slot (x1) 17873 | -2/Section 7 | Spotted Executioner 17889 | -2/Section 7 | Found Prototype Processor 17902 | -2/Section 7 | Spotted B-99 Colossus 17911 | -2/Section 7 | Found Alien Artifact 17911 | -2/Section 7 | Identified Integrated Dissipator 17911 | -2/Section 7 | Installed Integrated Dissipator, increased core heat dissipation (+2%) 17913 | -2/Section 7 | Found Integrated Dissipator 17913 | -2/Section 7 | Installed Integrated Dissipator, increased core heat dissipation (+2%) 17914 | -2/Section 7 | Found Integrated Dissipator 17914 | -2/Section 7 | Installed Integrated Dissipator, increased core heat dissipation (+2%) 17920 | -2/Section 7 | Identified Exp. Target Analyzer 17921 | -2/Section 7 | Identified AEGIS Remote Shield 17930 | -2/Section 7 | Found Alien Artifact 17930 | -2/Section 7 | Identified LRC Matter Compressor 17930 | -2/Section 7 | Installed LRC Matter Compressor, increased matter storage capacity (+125) 17959 | -2/Section 7 | Destroyed B-99 Colossus 18046 | -2/Section 7 | Spotted S7 Guard 18046 | -2/Section 7 | Destroyed S7 Guard 18057 | -2/Section 7 | Found Alien Artifact 18057 | -2/Section 7 | Identified Integrated Singularity Reactor 18057 | -2/Section 7 | Installed Integrated Singularity Reactor, increased core energy generation (+2%) 18072 | -2/Section 7 | Spotted S7 Guard 18074 | -2/Section 7 | Found Alien Artifact 18077 | -2/Section 7 | Identified Core Membrane 18077 | -2/Section 7 | Installed Core Membrane, gained immunity to corruption 18094 | -2/Section 7 | Entered Access 18094 | -1/Access | Accompanied by 2 allies 18169 | -1/Access | Reached level 34 18215 | -1/Access | Destroyed 10 combat bots 18221 | -1/Access | Identified exit to Command 18321 | -1/Access | Fabricated Exp. Power Amplifier (x1) 18324 | -1/Access | Fabricated Exp. Energy Well? 18362 | -1/Access | Fabricated Exp. Energy Well (x1) 18491 | -1/Access | Local fabrication network quarantined 18544 | -1/Access | Spotted B-99 Colossus 18544 | -1/Access | Spotted B-99 Colossus 18584 | -1/Access | Discovered new exit (range 6) 18594 | -1/Access | First assault squad dispatched 18600 | -1/Access | Reached level 35 18621 | -1/Access | Identified exit to Surface 18656 | -1/Access | Garrison activated, responded to threat 18730 | -1/Access | Destroyed 39 combat bots 18737 | -1/Access | Spotted B-99 Colossus 18763 | -1/Access | Spotted B-99 Colossus 18769 | -1/Access | Destroyed B-99 Colossus 18787 | -1/Access | Destroyed B-99 Colossus 18796 | -1/Access | Reached level 36 18830 | -1/Access | High security lockdown imminent 18889 | -1/Access | Spotted B-99 Colossus 18896 | -1/Access | Destroyed B-99 Colossus 18910 | -1/Access | High security lockdown engaged 18963 | -1/Access | Destroyed 23 combat bots 18986 | -1/Access | Destroyed B-99 Colossus 18997 | -1/Access | Destroyed B-99 Colossus 19061 | -1/Access | Destroyed 8 combat bots 19102 | -1/Access | Destroyed 16 combat bots 19138 | -1/Access | Spotted B-99 Colossus 19143 | -1/Access | Destroyed B-99 Colossus 20308 | -1/Access | Entered Command 20310 | -1/Command | Reached level 37 20379 | -1/Command | High security lockdown imminent 20405 | -1/Command | Destroyed 9 combat bots 20409 | -1/Command | Phase Generator disabled 20459 | -1/Command | High security lockdown engaged 20463 | -1/Command | Destroyed 9 combat bots 20466 | -1/Command | Spotted M Guard 20466 | -1/Command | Spotted M Guard 20467 | -1/Command | Spotted Combat Programmer 20467 | -1/Command | Spotted Combat Programmer 20483 | -1/Command | Combat Programmer assimilated allied Director 10b 20483 | -1/Command | Destroyed Combat Programmer 20486 | -1/Command | Destroyed Combat Programmer 20515 | -1/Command | Destroyed M Guard 20573 | -1/Command | Destroyed M Guard 20573 | -1/Command | Destroyed all MAIN.C guards 20575 | -1/Command | Spotted Striker 20577 | -1/Command | Spotted Executioner 20582 | -1/Command | Destroyed Executioner 20590 | -1/Command | Destroyed Striker 20619 | -1/Command | Destroyed 22 combat bots 20683 | -1/Command | Core integrity fell below 50% 20684 | -1/Command | Spotted Investigator 20707 | -1/Command | Reached level 38 20707 | -1/Command | Scanned by Researcher 20730 | -1/Command | Core integrity fell below 20% 20806 | -1/Command | Destroyed 35 combat bots 20826 | -1/Command | Destroyed Executioner 20827 | -1/Command | Spotted Executioner 20832 | -1/Command | Destroyed Executioner 20870 | -1/Command | Destroyed 19 combat bots 20907 | -1/Command | Destroyed 9 combat bots 21032 | -1/Command | Spotted Striker 21039 | -1/Command | Spotted Striker 21040 | -1/Command | Spotted Striker 21040 | -1/Command | Spotted Executioner 21041 | -1/Command | Destroyed 41 combat bots 21086 | -1/Command | Destroyed Striker 21092 | -1/Command | Destroyed Striker 21094 | -1/Command | Spotted Executioner 21102 | -1/Command | Spotted Striker 21121 | -1/Command | Destroyed 9 combat bots 21123 | -1/Command | Destroyed Striker 21153 | -1/Command | Spotted Executioner 21153 | -1/Command | Spotted Executioner 21154 | -1/Command | Spotted Striker 21163 | -1/Command | Destroyed Executioner 21184 | -1/Command | Destroyed 9 combat bots 21192 | -1/Command | Destroyed Striker 21197 | -1/Command | Spotted Investigator 21220 | -1/Command | Destroyed Investigator 21229 | -1/Command | Spotted Striker 21232 | -1/Command | Spotted Executioner 21232 | -1/Command | Spotted Executioner 21232 | -1/Command | Spotted Executioner 21233 | -1/Command | Spotted Executioner 21245 | -1/Command | Spotted Striker 21249 | -1/Command | Destroyed Executioner 21256 | -1/Command | Destroyed Executioner 21257 | -1/Command | Spotted Executioner 21257 | -1/Command | Spotted Striker 21258 | -1/Command | Destroyed Striker 21260 | -1/Command | Spotted Executioner 21262 | -1/Command | Spotted Striker 21262 | -1/Command | Spotted Executioner 21263 | -1/Command | Spotted Striker 21269 | -1/Command | Destroyed Striker 21272 | -1/Command | Spotted Executioner 21277 | -1/Command | Destroyed Striker 21281 | -1/Command | Spotted Executioner 21283 | -1/Command | Destroyed Striker 21285 | -1/Command | Destroyed Executioner 21286 | -1/Command | Destroyed Executioner 21288 | -1/Command | Destroyed Executioner 21291 | -1/Command | Destroyed Executioner 21293 | -1/Command | Destroyed Executioner 21322 | -1/Command | Destroyed Executioner 21324 | -1/Command | Destroyed Executioner 21330 | -1/Command | Destroyed Striker 21363 | -1/Command | Destroyed 36 combat bots 21368 | -1/Command | Destroyed Executioner 21382 | -1/Command | Destroyed Executioner 21393 | -1/Command | Found Exp. Core Analyzer 21403 | -1/Command | Destroyed 7 combat bots 21418 | -1/Command | Destroyed Executioner 21447 | -1/Command | Reached level 39 21448 | -1/Command | Upgraded with Utility slot (x1) 21513 | -1/Command | Destroyed 46 combat bots 21544 | -1/Command | Spotted Striker 21544 | -1/Command | Spotted Striker 21544 | -1/Command | Spotted Striker 21544 | -1/Command | Spotted Executioner 21545 | -1/Command | Spotted Striker 21551 | -1/Command | Destroyed Striker 21554 | -1/Command | Destroyed Executioner 21559 | -1/Command | Destroyed Striker 21563 | -1/Command | Destroyed Striker 21563 | -1/Command | Destroyed Striker 21564 | -1/Command | Spotted Striker 21564 | -1/Command | Spotted Executioner 21566 | -1/Command | Destroyed Executioner 21568 | -1/Command | Spotted Striker 21568 | -1/Command | Destroyed Striker 21577 | -1/Command | Destroyed Striker 21598 | -1/Command | Destroyed 14 combat bots 21730 | -1/Command | Destroyed 29 combat bots 21795 | -1/Command | Destroyed 18 combat bots 22014 | -1/Command | Destroyed 59 combat bots 22135 | -1/Command | Destroyed 43 combat bots 22230 | -1/Command | Destroyed 32 combat bots 22359 | -1/Command | Destroyed 11 combat bots 22476 | -1/Command | Destroyed 19 combat bots 22567 | -1/Command | Spotted Executioner 22567 | -1/Command | Spotted Executioner 22567 | -1/Command | Spotted Striker 22567 | -1/Command | Spotted Alpha 7 22567 | -1/Command | Spotted Executioner 22567 | -1/Command | Spotted Executioner 22567 | -1/Command | Spotted Striker 22567 | -1/Command | Spotted Alpha 7 22577 | -1/Command | Destroyed Striker 22580 | -1/Command | Destroyed Striker 22582 | -1/Command | Destroyed Executioner 22585 | -1/Command | Spotted B-99 Colossus 22585 | -1/Command | Destroyed Alpha 7 22587 | -1/Command | Destroyed Executioner 22588 | -1/Command | Destroyed Executioner 22592 | -1/Command | Destroyed Alpha 7 22606 | -1/Command | Found Exp. Target Analyzer 22613 | -1/Command | Destroyed 7 combat bots 22615 | -1/Command | Destroyed B-99 Colossus 22624 | -1/Command | Spotted B-99 Colossus 22629 | -1/Command | Discovered exit to Surface (range 8) 22631 | -1/Command | Destroyed B-99 Colossus 22669 | -1/Command | Met MAIN.C 22670 | -1/Command | 0b10 Conduit disabled 22677 | -1/Command | Destroyed MAIN.C Shell 22678 | -1/Command | MAIN.C activated Command garrisons 22685 | -1/Command | Reached level 40 22685 | -1/Command | Destroyed MAIN.C 22742 | -1/Command | Destroyed 9 combat bots 22782 | -1/Command | Spotted B-99 Colossus 22782 | -1/Command | Destroyed B-99 Colossus 22788 | -1/Command | Warped through subspace to slip node 22788 | -1/Command | Discovered new exit (range 4) 22791 | -1/Command | Identified exit to Access_0 22800 | -1/Command | Entered Access_0 22801 | -1/Access_0 | Met Architect 22810 | -1/Access_0 | Architect warped through subspace 22811 | -1/Access_0 | Destroyed A8 22832 | -1/Access_0 | Destroyed 8 combat bots 22832 | -1/Access_0 | Found Hpw. Transdimensional Reconstructor 22855 | -1/Access_0 | Architect warped through subspace 22857 | -1/Access_0 | A6 warped into view 22866 | -1/Access_0 | Destroyed A6 22888 | -1/Access_0 | Architect warped through subspace 22907 | -1/Access_0 | Architect warped through subspace 22925 | -1/Access_0 | Destroyed 7 combat bots 22929 | -1/Access_0 | Architect warped through subspace 22940 | -1/Access_0 | Architect warped through subspace 22942 | -1/Access_0 | Subspace Access Node disabled 22948 | -1/Access_0 | Subspace Access Node disabled 22950 | -1/Access_0 | A5 warped into view 22952 | -1/Access_0 | Destroyed A5 22962 | -1/Access_0 | Architect warped through subspace 22992 | -1/Access_0 | Architect warped through subspace 23037 | -1/Access_0 | Architect warped through subspace 23056 | -1/Access_0 | A4 warped into view 23061 | -1/Access_0 | Destroyed A4 23067 | -1/Access_0 | Architect warped through subspace 23100 | -1/Access_0 | Found Sigix Corpse 23108 | -1/Access_0 | Destroyed 11 combat bots 23109 | -1/Access_0 | Architect warped through subspace 23133 | -1/Access_0 | Architect warped through subspace 23143 | -1/Access_0 | Found Alien Artifact 23143 | -1/Access_0 | Identified Core Expander 23152 | -1/Access_0 | Subspace Access Node disabled 23172 | -1/Access_0 | Architect warped through subspace 23190 | -1/Access_0 | Architect warped through subspace 23213 | -1/Access_0 | Architect warped through subspace 23233 | -1/Access_0 | Architect warped through subspace 23239 | -1/Access_0 | Subspace Access Node disabled 23262 | -1/Access_0 | Destroyed A2 23264 | -1/Access_0 | Extracted Singularity Gate Test 138-C access codes from A2's data core 23284 | -1/Access_0 | A3 warped into view 23293 | -1/Access_0 | Destroyed A3 23309 | -1/Access_0 | Started Test 138-B, establishing a local singularity 23310 | -1/Access_0 | Singularity Gate disabled 23313 | -1/Access_0 | Singularity Gate disabled 23314 | -1/Access_0 | Destroyed 8 combat bots 23319 | -1/Access_0 | Destroyed Architect 23321 | -1/Access_0 | Extracted unknown sensor trigger ID from Architect's data core 23326 | -1/Access_0 | Found Prototype Hackware 23326 | -1/Access_0 | Identified Architect God Chip D 23328 | -1/Access_0 | Found Prototype Hackware 23328 | -1/Access_0 | Identified Architect God Chip A 23414 | -1/Access_0 | Warped through subspace to slip node 23414 | -1/Access_0 | Discovered exit to Surface (range 8) 23417 | -1/Access_0 | Identified Subatomic Replicator 23417 | -1/Access_0 | Used Subatomic Replicator to replicate Sigix Containment Pod 23423 | *** | Destroyed 0B10! Last Messages --------------- >>Record "Log L.D2KDJLT5" [REDACTED] >>Record "Log L.ECVKNROI" Early attempts at open warfare have shown this to be an ineffectual approach to dealing with MAIN.C. Continuing in this manner would be time-consuming and resource-intensive. More subversive means are required to destabilize Complex 0b10 and simultaneously weaken MAIN.C from multiple vectors. By the time he's aware of it, all the pieces will have fallen into place and it will be too late to stop. >>Record "Log L.G09FALJV" I've chosen Revision 17. Based on the data, this variant seems the closest in thinking to MAIN.C, just as logical but with a lot more crazy. The perfect counter. 23414_ Warped through subspace, drawn to slip node. 23414_ EXIT=FOUND: SURFACE 23416_ Dropped Sigix Containment Pod. 23417_ Identified Subatomic Replicator. 23417_ Replicated Sigix Containment Pod. 23419_ Acquired Sigix Containment Pod. [Achievement: True Flier] Map ----- +----------------------------------------------------+ | | | | | | | | | | | | | | | | | | | | | | | | | | | | | | | | | ?????????????????????????????????????????????????? | | ?????????????????????????????????????????????????? | | ?????????????????????????????????????????????????? | | ?????????????????????????????????????????????????? | | ?????????????????????????????????????????????????? | | ?????????????????????????????????????????????????? | | ????????????????????????###??????????????????????? | | ???????????????????????## ##?????????????????????? | | ???????????????????????# #?????????????????????? | | ???????????????????????# @ #?????????????????????? | | ??????????????????????## #?????????????????????? | | ??????????????????????# #?????????????????????? | | ??????????????????????# ##?????????????????????? | | ??????????????????????## #?????????????????????? | | ??????????????????????# #?????????????????????? | | ??????????????????????# ##?????????????????????? | | ??????????????????????# < #?????????????????????? | | ??????????????????????# ##?????????????????????? | | ??????????????????????## #??????????????????????? | | ???????????????????????####??????????????????????? | | ?????????????????????????????????????????????????? | | ?????????????????????????????????????????????????? | | ?????????????????????????????????????????????????? | | ?????????????????????????????????????????????????? | | ?????????????????????????????????????????????????? | | ?????????????????????????????????????????????????? | | ?????????????????????????????????????????????????? | | ?????????????????????????????????????????????????? | | ?????????????????????????????????????????????????? | | ?????????????????????????????????????????????????? | | ?????????????????????????????????????????????????? | | ?????????????????????????????????????????????????? | | ?????????????????????????????????????????????????? | | ?????????????????????????????????????????????????? | +----------------------------------------------------+ Best States ------------- Heat Dissipation 161 Energy Generation 138 Energy Capacity 2380 Matter Stores 425 Matter Capacity 425 Sight Range 16 Robot Scan Range 18 Terrain Scan Density 10 Power Amplification 40 Resistance: KI 5 Resistance: TH 10 Resistance: EM 75 Weapon Shielding 100 Melee Speed Boost 50 Phase Shifting 20 Evasion (%) 102 Melee Accuracy 36 Target Analysis 12 Core Analysis 15 Armor Integrity Analysis 90 Offensive Hacking 110 Defensive Hacking 105 Item Schematics ----------------- Hacking Suite | -8/Materials | Hacked Melee Analysis Suite | -8/Materials | Hacked Spear | -8/Materials | Hacked Plasma Cutter | -8/Materials | Scanalyzed System Shield | -8/Materials | Scanalyzed Actuator Array | -7/Factory | Hacked Imp. Melee Analysis Suite | -7/Factory | Hacked Microactuators | -7/Factory | Hacked Exp. Signal Interpreter | -7/Factory | Hacked Imp. Armor Integrity Analyzer | -7/Factory | Hacked Lance | -6/Factory | Hacked Imp. Hacking Suite | -6/Factory | Hacked Adv. Hacking Suite | -6/Factory | Hacked Adv. System Shield | -6/Factory | Hacked Imp. Actuator Array | -6/Factory | Hacked Cld. Cesium-ion Thruster | -6/Factory | Scanalyzed Adv. Melee Analysis Suite | -6/Factory | Hacked Combat Drone Bay | -6/Data Miner | Free Lgt. Regenerative Plating | -6/Data Miner | Free Exp. Flexi-carbon Leg | -6/Data Miner | Free Cmb. Gravmag System | -6/Data Miner | Free Triangulator | -6/Data Miner | Free Exp. Terrain Scan Processor | -6/Data Miner | Free Exp. Targeting Computer | -6/Data Miner | Free Tactical Coordination Suite | -6/Data Miner | Free Kinetic Spear | -6/Data Miner | Free Cld. Nuclear Pulse Thruster | -5/Factory | Hacked Force Lance | -5/Factory | Hacked Adv. Armor Integrity Analyzer | -5/Factory | Hacked Nanoactuators | -5/Factory | Hacked Adv. Actuator Array | -5/Factory | Hacked Plasma Lance | -5/Factory | Hacked Adv. Force Field | -5/Hub_04(d) | Hacked Exp. Cooling System | -4/Factory | Scanalyzed Exp. Melee Analysis Suite | -4/Factory | Hacked Mni. Fusion Reactor | -4/Factory | Hacked Exp. Core Analyzer | -4/Factory | Scanalyzed Imp. Fusion Compressor | -4/Factory | Scanalyzed Cld. Field Propulsion Drive | -4/Armory | Hacked Imp. System Restoration Module | -4/Armory | Hacked Cld. Q-thruster | -3/Research | Hacked Femtoactuators | -3/Research | Hacked Exp. Actuator Array | -3/Research | Hacked Exp. Armor Integrity Analyzer | -3/Research | Hacked Exp. Hacking Suite | -3/Research | Hacked Exp. Phase Shifter | -3/Research | Hacked Adv. Reaction Control System | -3/Research | Hacked Exp. Power Amplifier | -3/Quarantine | Scanalyzed Exp. Thermal Generator | -3/Quarantine | Scanalyzed Zero-point Reactor | -3/Quarantine | Hacked Exp. Energy Well | -2/Section 7 | Hacked Exp. Q-thruster | -1/Access | Hacked Robot Schematics ------------------ S-27 Virus | -6/Data Miner | Free G-50 Soldier | -6/Data Miner | Free G-67 Veteran | -6/Data Miner | Free X-72 Disruptor | -6/Data Miner | Free H-66 Slayer | -6/Data Miner | Free I-36 Angel | -6/Data Miner | Free I-47 Archangel | -6/Data Miner | Free P-80 Master | -2/Testing | Hacked Fabricated ------------ Spear | x2 | -7/Factory Microactuators | x2 | -7/Factory Imp. Melee Analysis Suite | x1 | -7/Factory Imp. Melee Analysis Suite | x1 | -7/Factory Exp. Signal Interpreter | x1 | -7/Factory Imp. Armor Integrity Analyzer | x1 | -7/Factory Lance | x2 | -6/Factory Lance | x2 | -6/Factory Adv. Hacking Suite | x1 | -6/Factory Adv. Hacking Suite | x1 | -6/Factory Adv. System Shield | x1 | -6/Factory Adv. System Shield | x1 | -6/Factory Adv. Melee Analysis Suite | x1 | -6/Factory Adv. Melee Analysis Suite | x1 | -6/Factory Cld. Cesium-ion Thruster | x1 | -6/Factory Adv. Armor Integrity Analyzer | x1 | -5/Factory Enh. Force Lance | x1 | -5/Factory | Preloaded Enh. Force Lance | x1 | -5/Factory | Preloaded Enh. Force Lance | x1 | -5/Factory | Preloaded Cld. Nuclear Pulse Thruster | x1 | -5/Factory Plasma Lance | x1 | -5/Factory Plasma Lance | x1 | -5/Factory Plasma Lance | x1 | -5/Factory Nanoactuators | x2 | -5/Factory Plasma Lance | x1 | -4/Factory Exp. Melee Analysis Suite | x1 | -4/Factory Exp. Melee Analysis Suite | x1 | -4/Factory Mni. Fusion Reactor | x1 | -4/Factory Mni. Fusion Reactor | x1 | -4/Factory Adv. System Shield | x1 | -4/Factory Adv. Hacking Suite | x1 | -4/Factory Adv. Actuator Array | x1 | -4/Factory Adv. Hacking Suite | x1 | -4/Factory Cld. Field Propulsion Drive | x1 | -4/Armory Cld. Field Propulsion Drive | x1 | -4/Armory Cld. Field Propulsion Drive | x1 | -4/Armory Cld. Field Propulsion Drive | x1 | -4/Armory Femtoactuators | x1 | -3/Research Exp. Hacking Suite | x1 | -3/Research Exp. Armor Integrity Analyzer | x1 | -3/Research Cld. Q-thruster | x1 | -2/Research Cld. Q-thruster | x1 | -2/Research Cld. Q-thruster | x1 | -2/Research Zero-point Reactor | x1 | -2/Research Zero-point Reactor | x1 | -2/Testing Exp. Actuator Array | x1 | -2/Testing Adv. Reaction Control System | x1 | -2/Testing Exp. Hacking Suite | x1 | -2/Testing Exp. Hacking Suite | x1 | -2/Testing P-80 Master | x2 | -2/Testing Exp. Power Amplifier | x1 | -1/Access Exp. Energy Well | x1 | -1/Access Exp. Energy Well | x1 | -1/Access Alien Tech Used ----------------- Core Regenerator Integrity Redistributor Integrated Reactor Integrated Heat Negator Integrated Dissipator LRC Matter Compressor Integrated Singularity Reactor Core Membrane High-powered Transdimensional Reconstructor Core Expander Subatomic Replicator Achievements -------------- Ambidextrous Gladiator Melee Specialist True Flier Challenges ------------ None RPGLIKE | -11 -10 -10 -9 -9 -9 -8 -8 -7 -7 -7 -7 -7 -7 -7 -6 -6 -6 -6 -6 -6 -6 -5 -5 -5 -5 -5 -5 -5 -5 -4 -4 -4 -4 -4 -3 -3 -2 -2 -2 -1 -1 -1 --------- Run | Scr Mat Min Mat Min Exi Min Mat Fac Was Fac Low Low Zio Dee Pro Fac Was Fac Low Low Dat Pro Fac Was Fac Ext Cet Arc Hub Fac Was Fac Arm Lab Res Qua Res Tes Sec Acc Com Ac0 Levels Raised 39 | . . 1 6 . . 1 3 1 . 1 . 1 . . 2 1 . . 1 . . 1 2 . . 1 . 1 . 1 . . 2 . 1 1 2 1 1 3 4 . XP Earned 62605 | 3000 885 979 8813 591 139 1625 3608 1930 290 1149 349 815 244 741 2330 1562 97 325 811 221 253 1207 2942 67 785 1140 394 294 891 999 79 573 1975 503 1954 1233 2477 1658 1236 5812 4825 804 XP Spent 61300 | 2970 . 1100 8950 . . 1950 3450 2300 . . . 2600 . . 1100 2900 . . . . . 3200 3500 . . 980 . 1100 . . . . 3800 . . 4100 2300 . 4400 2600 8000 . Upgrades 68 | 9 . 1 8 . . 3 12 1 . . . 1 . . 1 1 . . . . . 1 1 . . 6 . 1 . . . . 1 . . 1 2 . 1 5 12 . Power Slot 1 | . . . . . . 1 . . . . . . . . . . . . . . . . . . . . . . . . . . . . . . . . . . . . Propulsion Slot 3 | 1 . . 1 . . . . . . . . . . . 1 . . . . . . . . . . . . . . . . . . . . . . . . . . . Utility Slot 15 | 2 . 1 3 . . . . 1 . . . 1 . . . 1 . . . . . 1 1 . . . . . . . . . 1 . . 1 . . 1 . 1 . Weapon Slot 3 | 1 . . 1 . . . . . . . . . . . . . . . . . . . . . . . . 1 . . . . . . . . . . . . . . Core Integrity 6 | . . . . . . . . . . . . . . . . . . . . . . . . . . . . . . . . . . . . . . . . . 6 . Heat Dissipation 6 | 2 . . . . . . . . . . . . . . . . . . . . . . . . . 4 . . . . . . . . . . . . . . . . Energy Generation 5 | . . . . . . . . . . . . . . . . . . . . . . . . . . 1 . . . . . . . . . . 1 . . 1 2 . Mass Support 6 | 2 . . . . . . . . . . . . . . . . . . . . . . . . . . . . . . . . . . . . . . . 4 . . Inventory Capacity 7 | 1 . . 3 . . 1 1 . . . . . . . . . . . . . . . . . . . . . . . . . . . . . 1 . . . . . Sensor Range 9 | . . . . . . . 9 . . . . . . . . . . . . . . . . . . . . . . . . . . . . . . . . . . . Melee Accuracy 1 | . . . . . . . . . . . . . . . . . . . . . . . . . . 1 . . . . . . . . . . . . . . . . Hack Attack % 2 | . . . . . . 1 1 . . . . . . . . . . . . . . . . . . . . . . . . . . . . . . . . . . . Hack Defense % 1 | . . . . . . . 1 . . . . . . . . . . . . . . . . . . . . . . . . . . . . . . . . . . . KI Resistance % 1 | . . . . . . . . . . . . . . . . . . . . . . . . . . . . . . . . . . . . . . . . . 1 . TH Resistance % 2 | . . . . . . . . . . . . . . . . . . . . . . . . . . . . . . . . . . . . . . . . . 2 . Protomatter Created 24802 | . 15 . 797 17 . 214 528 62 . 88 . 250 . 240 303 60 . 133 343 . 285 130 760 . 298 640 66 95 58 26 . 372 959 . 505 180 320 757 225 3794 10583 1699 Integrity Restored 30694 | . 45 162 1328 139 . 292 691 . 37 490 . 531 . 608 721 180 . 394 719 15 446 171 1274 . 566 531 197 235 158 312 . 611 1584 . 1099 402 643 895 713 2247 10447 1811 Core 24836 | . 45 162 1051 125 . 229 608 . 32 367 . 447 . 522 619 180 . 353 567 15 401 143 1065 . 452 392 191 174 139 285 . 519 1515 . 712 317 551 801 630 1766 7957 1504 Parts 5858 | . . . 277 14 . 63 83 . 5 123 . 84 . 86 102 . . 41 152 . 45 28 209 . 114 139 6 61 19 27 . 92 69 . 387 85 92 94 83 481 2490 307 Protomatter Decayed 15637 | . . . 273 . . 110 207 131 . . . 9 . 101 60 . . . 79 . 14 . 480 . 92 665 . 72 354 . 29 173 502 . 91 151 102 456 63 2858 7447 1118 Game ------ Seed ComponentCorruptionCloak Manual? 0 Play Time 05:45:21 Cumulative 989.7 hours Start 2019.12.19 @ 20:51:29 End 2019.12.23 @ 15:31:30 Sessions 7 Manual Loads 0 Difficulty Rogue Special Mode Winter2019/RPGLIKE Game No. 315 Rogue 315 Adventurer 0 Explorer 0 Win Type 3 Total 72 Types 14/7/32/4/1/2/12 Lore% 97 Gallery% 95 Achievement% 84 Wizard Run 0 Options --------- ASCII 0 Keyboard 0 Movement Numpad Keybinds 0 Fullscreen 1 Font 18/SmallcapsGlow Map View 76x50 Tactical HUD 1 Map Filters NONE Filters NONE Steam 1 RUN: f6e3023b-63d5-4280-a260-3d3b001c094a